Workbook

Sheet Readme
A1: Gas Condensate PVT Analysis Workbook
A2: Written by Robert Mott, August 2003
A4: This worksheet analyses results from CVD and CCE tests on a gas condensate fluid
A6: Data should only be entered on yellow cells
A8: First enter CVD data (below the dew point) on the sheet 'CVD Data'
A9: Then enter CCE relative volumes (above the dew point) on the sheet 'CCE Data'
A11: Recovery factors for individual components and for stock tank oil and gas are shown on the sheet 'Recovery factors'
A13: The sheet 'CVD analysis' contains material balance calculations which can be used as a consistency check of CVD data
A14: These checks are described in 'Phase Behavior', SPE Monograph 20, by Whitson and Brule
A16: The material balance checks calculate liquid phase densities and compositions.
A18: Densities and K-values from the material balance calculation are displayed as charts.
A20: Non-monotonic behaviour for the K-value or liquid density curves will cast some doubt on the validity of the CVD measurements
A22: If the liquid composition is measured at the end of the CVD, two other material balance checks can be used.
A23: A 'Forward Material Balance' calculates the final liquid composition from the original composition, liquid saturations, Z-factors, amounts of gas removed, and the gas compositions at each step.
A24: A 'Backward Material Balance' calculates the original composition from the final liquid composition, final liquid saturation, final gas Z-factor, the amounts of gas removed, and the gas compositions at each step. This is a better check for lean condensates.
A25: The Material Balance checks are shown on the sheet 'Material Balance'.

Sheet Remap-comps
A1: JK1
A3: Nitrogen | B3: 0 | D3: N2 | E3: =B3 -> 0
A4: Carbon Dioxide | B4: 0 | D4: CO2 | E4: =B4 -> 0
A5: Methane | B5: 0.002 | D5: H2S | E5: 0
A6: Ethane | B6: 0.008 | D6: C1 | E6: =B5 -> 0.002
A7: Propane | B7: 0.154 | D7: C2 | E7: =B6 -> 0.008
A8: Isobutane | B8: 0.188 | D8: C3 | E8: =B7 -> 0.154
A9: n-Butane | B9: 0.608 | D9: iC4 | E9: =B8 -> 0.188
A10: 2,2 Dimethylpropane | B10: 0.004 | D10: nC4 | E10: =B9 -> 0.608
A11: Isopentane | B11: 0.835 | D11: iC5 | E11: =SUM(B10:B11) -> 0.839
A12: n-Pentane | B12: 1.099 | D12: nC5 | E12: =B12 -> 1.099
A13: 2,2 Dimethylbutane | B13: 0.055 | D13: C6 | E13: =SUM(B13:B18) -> 3.234
A14: Cyclopentane | B14: 0 | D14: =PlusFrac -> C7+ | E14: =B19 -> 93.867
A15: 2,3 Dimethylbutane | B15: 0.356
A16: 2 Methylpentane | B16: 0.84
A17: 3 Methylpentane | B17: 0.56
A18: n-Hexane | B18: 1.423
A19: Heptanes Plus | B19: 93.867

Sheet CVD Data
B1: CVD Data | U1: No of pressures in CVD | X1: Plus fraction
B2: The first pressure must be the dew point pressure | I2: Fill-In-Cell | Y2: 2
B3: The number of pressure entries must be set to display the charts correctly | U3: N_pres | V3: 7 | X3: N_plus | Y3: =Y2+5 -> 7
X4: PlusFrac | Y4: =CONCATENATE("C",TEXT(N_plus,"0"),"+") -> C7+
B5: Number of pressure entries
B7: Plus fraction
V9: 1 | Y9: C6+
B10: Pressure (psig) | C10: 5535 | D10: 4500 | E10: 3500 | F10: 2500 | G10: 1700 | H10: 900 | I10: 2 | V10: 2 | Y10: C7+
N11: Equilibrium | V11: 3 | Y11: C8+
B12: Wellstream produced (cum %) | C12: 0 | D12: 7.976 | E12: 21.98 | F12: 39.965 | G12: 56.259 | H12: 73.951 | I12: 93.845 | N12: Liquid | V12: 4 | Y12: C9+
B13: Liquid volume (%) | C13: 0 | D13: 17 | E13: 22.842 | F13: 23.832 | G13: 22.309 | H13: 19.063 | I13: 14.967 | N13: (last stage) | V13: 5 | Y13: C10+
B14: Equilibrium gas Z-factor | C14: 1.0823 | D14: 0.9202 | E14: 0.8515 | F14: 0.8369 | G14: 0.8568 | H14: 0.9069 | I14: 1 | V14: 6 | Y14: C11+
Q15: MW | R15: Density | V15: 7 | Y15: C12+
B16: Equilibrium gas composition | Q16: Mwref | R16: (lb/ft3) | V16: 8
B17: N2 | C17: 0.393 | D17: 0.405 | E17: 0.433 | F17: 0.442 | G17: 0.437 | H17: 0.428 | I17: 0.335 | N17: 0 | O17: N2 | Q17: 28.013 | V17: 9
B18: CO2 | C18: 1.776 | D18: 1.829 | E18: 1.863 | F18: 1.899 | G18: 1.936 | H18: 1.945 | I18: 1.612 | N18: 0 | O18: CO2 | Q18: 44.01 | V18: 10
B19: H2S | C19: 0 | D19: 0 | E19: 0 | F19: 0 | G19: 0 | H19: 0 | I19: 0 | N19: 0 | O19: H2S | Q19: 34.076
B20: C1 | C20: 68.25 | D20: 71.913 | E20: 74.339 | F20: 75.538 | G20: 76.049 | H20: 74.723 | I20: 60.118 | N20: 0.002 | O20: C1 | Q20: 16.04
B21: C2 | C21: 7.024 | D21: 7.178 | E21: 7.244 | F21: 7.464 | G21: 7.621 | H21: 7.691 | I21: 7.178 | N21: 0.008 | O21: C2 | Q21: 30.07
B22: C3 | C22: 6.625 | D22: 6.501 | E22: 6.501 | F22: 6.501 | G22: 6.501 | H22: 7.112 | I22: 8.091 | N22: 0.154 | O22: C3 | Q22: 44.09
B23: iC4 | C23: 1.418 | D23: 1.352 | E23: 1.312 | F23: 1.3 | G23: 1.324 | H23: 1.462 | I23: 1.991 | N23: 0.188 | O23: iC4 | Q23: 58.12 | R23: 35.01
B24: nC4 | C24: 2.319 | D24: 2.178 | E24: 2.113 | F24: 2.113 | G24: 2.113 | H24: 2.36 | I24: 3.243 | N24: 0.608 | O24: nC4 | Q24: 58.12 | R24: 36.45
B25: iC5 | C25: 0.857 | D25: 0.8 | E25: 0.766 | F25: 0.724 | G25: 0.69 | H25: 0.815 | I25: 1.213 | N25: 0.839 | O25: iC5 | Q25: 72.15 | R25: 39.13
B26: nC5 | C26: 0.842 | D26: 0.787 | E26: 0.757 | F26: 0.716 | G26: 0.681 | H26: 0.762 | I26: 1.151 | N26: 1.099 | O26: nC5 | Q26: 72.15 | R26: 39.3
B27: C6 | C27: 0.968 | D27: 0.857 | E27: 0.771 | F27: 0.701 | G27: 0.647 | H27: 0.701 | I27: 1.268 | N27: 3.234 | O27: C6 | Q27: 86.17 | R27: 41.19
B28: C7 | O28: C7 | Q28: 100.2 | R28: 42.58334374
B29: C8 | O29: C8 | Q29: 114.2 | R29: 44.19403171
B30: C9 | O30: C9 | Q30: 128.3 | R30: 45.34898239
B31: C10 | O31: C10 | Q31: 142.3 | R31: 45.67986016
B32: C11 | O32: C11 | Q32: 156.3 | R32: 46
B33: =PlusFrac -> C7+ | C33: 9.529 | D33: 6.2 | E33: 3.9 | F33: 2.6 | G33: 2 | H33: 2 | I33: 13.8 | N33: 93.867 | O33: =B33 -> C7+
B35: =CONCATENATE(PlusFrac," molecular weight") -> C7+ molecular weight | C35: 169.53 | D35: 149.703 | E35: 136.501 | F35: 126.627 | G35: 120.849 | H35: 116.4 | I35: 131.537 | N35: 189.3 | O35: =B35 -> C7+ molecular weight
B36: =CONCATENATE(PlusFrac," specific gravity") -> C7+ specific gravity | C36: 0.8163 | D36: 0.8013 | E36: 0.7897 | F36: 0.7803 | G36: 0.7746 | H36: 0.7699 | I36: 0.785 | N36: 0.8276 | O36: =B36 -> C7+ specific gravity
C37: =4.5579*C35^0.15178/C36^0.84573 -> 11.79427113 | D37: =($C$37/4.5579/D35^0.15178)^(-1/0.84573) -> 0.7982808967 | E37: 0.7851634885 | F37: 0.7746540365 | G37: 0.7681881933 | H37: 0.7630343831 | I37: 0.7799609519
B38: Total composition | C38: =IF(C10>1,SUM(C17:C33),"") -> 100.001 | D38: =IF(D10>1,SUM(D17:D33),"") -> 100 | E38: =IF(E10>1,SUM(E17:E33),"") -> 99.999 | F38: 99.998 | G38: 99.999 | H38: 99.999 | I38: 100 | N38: =SUM(N17:N33) -> 99.999
B42: mol vol | C42: =C35/C36 -> 207.6809996 | D42: =D35/D36 -> 186.8251591 | E42: 172.8517158 | F42: 162.2798923 | G42: 156.0147173 | H42: 151.188466 | I42: 167.5630573 | N42: =(SUMPRODUCT(N17:N32,Mwref)+N33*N35)/100 -> 182.408496 | O42: Residual liq MW
B43: Plus fraction prod | D43: =D33*(D12-C12)/100 -> 0.494512 | E43: 0.546156 | F43: 0.46761 | G43: 0.32588 | H43: 0.35384 | I43: 2.745372
B44: Cum moles | C44: 0 | D44: =SUM($C43:D43) -> 0.494512 | E44: =SUM($C43:E43) -> 1.040668 | F44: =SUM($C43:F43) -> 1.508278 | G44: =SUM($C43:G43) -> 1.834158 | H44: =SUM($C43:H43) -> 2.187998 | I44: =SUM($C43:I43) -> 4.93337 | J44: =SUM($C43:J43) -> 4.93337 | K44: =SUM($C43:K43) -> 4.93337 | L44: =SUM($C43:L43) -> 4.93337
D45: =D44/$C$51 -> 0.05189547697 | E45: 0.1092106202 | F45: 0.1582829258 | G45: 0.1924816875 | H45: 0.22961465 | I45: 0.5177216917
B47: Vol prod | D47: =D43*D42 -> 92.38728308 | E47: =E43*E42 -> 94.40400172 | F47: 75.88370046 | G47: 50.84207607 | H47: 53.49652682 | I47: 460.0229258 | J47: 0 | K47: 0 | L47: 0
B48: Cum vol | D48: =SUM($C$47:D47) -> 92.38728308 | E48: =SUM($C$47:E47) -> 186.7912848 | F48: =SUM($C$47:F47) -> 262.6749853 | G48: =SUM($C$47:G47) -> 313.5170613 | H48: =SUM($C$47:H47) -> 367.0135882 | I48: =SUM($C$47:I47) -> 827.036514
D49: =D48/$C$52 -> 0.0466840046 | E49: 0.09438707263 | F49: 0.13273169 | G49: 0.158422582 | H49: 0.1854547884 | I49: 0.4179079104
B51: Initial moles | C51: =C33 -> 9.529
B52: Vol | C52: =C51*C42 -> 1978.992245

Sheet CCE & other data
B1: General Information | E1: Fill-In-Cell
B3: JK-1 Gas Condensate
B5: Reservoir temperature (deg F) | E5: 263
B7: Initial pressure (psig) | E7: 10440
B9: Definition of oil for surface oil and gas recoveries | E9: C5+
B12: CCE Data
B13: only enter data at or above dew point pressure
B14: enter pressures in descending order
B16: Pressure | C16: Relative | M16: Pressure | N16: Rel vol
B17: psig | C17: volume | M17: P_CCE | N17: V_CCE
B18: 10440 | C18: 0.83715 | M18: =-B18 -> -10440 | N18: =C18 -> 0.83715
B19: 5535 | C19: 1 | M19: =-B19 -> -5535 | N19: =C19 -> 1
M20: 0 | N20: 0
M21: 0 | N21: 0
M22: 0 | N22: 0
M23: 0 | N23: 0
M24: 0 | N24: 0
M25: 0 | N25: 0
B35: C4+
B36: C5+
B37: C6+
B38: C7+
B40: Oil frac | C40: =MATCH(E9,B35:B38)+3 -> 5
B43: =CONCATENATE("Calculated oil gas ratio - assumes surface oil = ",E9) -> Calculated oil gas ratio - assumes surface oil = C5+
B45: Tstd | C45: 520 | D45: deg R
B46: Pstd | C46: 14.7 | D46: psia

Sheet Material balance
K2: Fill-In-Cell
B3: Forward material balance | G3: Backward material balance
B4: Calculates residual liquid composition | G4: Calculates initial gas composition
F6: Calculated density of residual liquid | I6: =INDEX('CVD analysis'!C49:K49,N_pres) -> 44.55404368 | J6: lb/ft3
F7: Density of res. Oil to use in calculation | I7: =K7*62.42797 -> 51.27833456 | J7: lb/ft3 | K7: 0.8214 | L7: g/cc
C9: Measured | D9: Calculated | H9: Measured | I9: Calculated
B10: ='CVD Data'!B17 -> N2 | C10: ='CVD Data'!N17 -> 0 | D10: =INDEX('CVD analysis'!C96:L96,N_pres) -> 0.1031819705 | G10: ='CVD Data'!B17 -> N2 | H10: ='CVD Data'!C17 -> 0.393 | I10: ='CVD analysis'!C138 -> 0.3868651304
B11: ='CVD Data'!B18 -> CO2 | C11: ='CVD Data'!N18 -> 0 | D11: =INDEX('CVD analysis'!C97:L97,N_pres) -> 0.7308376018 | G11: ='CVD Data'!B18 -> CO2 | H11: ='CVD Data'!C18 -> 1.776 | I11: ='CVD analysis'!C139 -> 1.732700875
B12: ='CVD Data'!B19 -> H2S | C12: ='CVD Data'!N19 -> 0 | D12: =INDEX('CVD analysis'!C98:L98,N_pres) -> 0 | G12: ='CVD Data'!B19 -> H2S | H12: ='CVD Data'!C19 -> 0 | I12: ='CVD analysis'!C140 -> 0
B13: ='CVD Data'!B20 -> C1 | C13: ='CVD Data'!N20 -> 0.002 | D13: =INDEX('CVD analysis'!C99:L99,N_pres) -> 13.27394086 | G13: ='CVD Data'!B20 -> C1 | H13: ='CVD Data'!C20 -> 68.25 | I13: ='CVD analysis'!C141 -> 67.45744336
B14: ='CVD Data'!B21 -> C2 | C14: ='CVD Data'!N21 -> 0.008 | D14: =INDEX('CVD analysis'!C100:L100,N_pres) -> 0.7535021994 | G14: ='CVD Data'!B21 -> C2 | H14: ='CVD Data'!C21 -> 7.024 | I14: ='CVD analysis'!C142 -> 6.978712413
B15: ='CVD Data'!B22 -> C3 | C15: ='CVD Data'!N22 -> 0.154 | D15: =INDEX('CVD analysis'!C101:L101,N_pres) -> 1.314933483 | G15: ='CVD Data'!B22 -> C3 | H15: ='CVD Data'!C22 -> 6.625 | I15: ='CVD analysis'!C143 -> 6.555127381
B16: ='CVD Data'!B23 -> iC4 | C16: ='CVD Data'!N23 -> 0.188 | D16: =INDEX('CVD analysis'!C102:L102,N_pres) -> 0.2828963852 | G16: ='CVD Data'!B23 -> iC4 | H16: ='CVD Data'!C23 -> 1.418 | I16: ='CVD analysis'!C144 -> 1.412051439
B17: ='CVD Data'!B24 -> nC4 | C17: ='CVD Data'!N24 -> 0.608 | D17: =INDEX('CVD analysis'!C103:L103,N_pres) -> 0.9079780693 | G17: ='CVD Data'!B24 -> nC4 | H17: ='CVD Data'!C24 -> 2.319 | I17: ='CVD analysis'!C145 -> 2.300816548
B18: ='CVD Data'!B25 -> iC5 | C18: ='CVD Data'!N25 -> 0.839 | D18: =INDEX('CVD analysis'!C104:L104,N_pres) -> 0.9254930872 | G18: ='CVD Data'!B25 -> iC5 | H18: ='CVD Data'!C25 -> 0.857 | I18: ='CVD analysis'!C146 -> 0.8518230847
B19: ='CVD Data'!B26 -> nC5 | C19: ='CVD Data'!N26 -> 1.099 | D19: =INDEX('CVD analysis'!C105:L105,N_pres) -> 1.131027833 | G19: ='CVD Data'!B26 -> nC5 | H19: ='CVD Data'!C26 -> 0.842 | I19: ='CVD analysis'!C147 -> 0.8400860424
B20: ='CVD Data'!B27 -> C6 | C20: ='CVD Data'!N27 -> 3.234 | D20: =INDEX('CVD analysis'!C106:L106,N_pres) -> 3.06789813 | G20: ='CVD Data'!B27 -> C6 | H20: ='CVD Data'!C27 -> 0.968 | I20: ='CVD analysis'!C148 -> 0.978105446
B21: ='CVD Data'!B28 -> C7 | C21: ='CVD Data'!N28 -> 0 | D21: =INDEX('CVD analysis'!C107:L107,N_pres) -> 0 | G21: ='CVD Data'!B28 -> C7 | H21: ='CVD Data'!C28 -> 0 | I21: ='CVD analysis'!C149 -> 0
B22: ='CVD Data'!B29 -> C8 | C22: ='CVD Data'!N29 -> 0 | D22: =INDEX('CVD analysis'!C108:L108,N_pres) -> 0 | G22: ='CVD Data'!B29 -> C8 | H22: ='CVD Data'!C29 -> 0 | I22: ='CVD analysis'!C150 -> 0
B23: ='CVD Data'!B30 -> C9 | C23: ='CVD Data'!N30 -> 0 | D23: =INDEX('CVD analysis'!C109:L109,N_pres) -> 0 | G23: ='CVD Data'!B30 -> C9 | H23: ='CVD Data'!C30 -> 0 | I23: ='CVD analysis'!C151 -> 0
B24: ='CVD Data'!B31 -> C10 | C24: ='CVD Data'!N31 -> 0 | D24: =INDEX('CVD analysis'!C110:L110,N_pres) -> 0 | G24: ='CVD Data'!B31 -> C10 | H24: ='CVD Data'!C31 -> 0 | I24: ='CVD analysis'!C152 -> 0
B25: ='CVD Data'!B32 -> C11 | C25: ='CVD Data'!N32 -> 0 | D25: =INDEX('CVD analysis'!C111:L111,N_pres) -> 0 | G25: ='CVD Data'!B32 -> C11 | H25: ='CVD Data'!C32 -> 0 | I25: ='CVD analysis'!C153 -> 0
B26: ='CVD Data'!B33 -> C7+ | C26: ='CVD Data'!N33 -> 93.867 | D26: =INDEX('CVD analysis'!C112:L112,N_pres) -> 77.50831038 | G26: ='CVD Data'!B33 -> C7+ | H26: ='CVD Data'!C33 -> 9.529 | I26: ='CVD analysis'!C154 -> 10.5053697
C28: =SUM(C10:C26) -> 99.999 | D28: =SUM(D10:D26) -> 100 | H28: =SUM(H10:H26) -> 100.001 | I28: =SUM(I10:I26) -> 99.99910142

Sheet MBO props
A1: Calculated modified black oil properties
A4: Pressure (psia) | C4: ='CVD Data'!C10 -> 5535 | D4: ='CVD Data'!D10 -> 4500 | E4: ='CVD Data'!E10 -> 3500 | F4: ='CVD Data'!F10 -> 2500 | G4: ='CVD Data'!G10 -> 1700 | H4: ='CVD Data'!H10 -> 900 | I4: ='CVD Data'!I10 -> 2 | J4: ='CVD Data'!J10 -> 0 | K4: ='CVD Data'!K10 -> 0 | L4: ='CVD Data'!L10 -> 0
A5: Pressure (psia) | B5: P | C5: =C4+Pstd -> 5549.7 | D5: =D4+Pstd -> 4514.7 | E5: 3514.7 | F5: 2514.7 | G5: 1714.7 | H5: 914.7 | I5: 16.7 | J5: 14.7 | K5: 14.7 | L5: 14.7
A7: Moles of Gas | N7: Carbon_no
A8: up to C3 | C8: =SUM('CVD Data'!C17:C22) -> 84.068 | D8: =SUM('CVD Data'!D17:D22) -> 87.826 | E8: =SUM('CVD Data'!E17:E22) -> 90.38 | F8: =SUM('CVD Data'!F17:F22) -> 91.844 | G8: =SUM('CVD Data'!G17:G22) -> 92.544 | H8: =SUM('CVD Data'!H17:H22) -> 91.899 | I8: =SUM('CVD Data'!I17:I22) -> 77.334 | J8: =SUM('CVD Data'!J17:J22) -> 0 | K8: =SUM('CVD Data'!K17:K22) -> 0 | L8: =SUM('CVD Data'!L17:L22) -> 0
A9: C4 | C9: =IF(Oil_frac>Carbon_no,'CVD Data'!C23+'CVD Data'!C24,0) -> 3.737 | D9: =IF(Oil_frac>Carbon_no,'CVD Data'!D23+'CVD Data'!D24,0) -> 3.53 | E9: =IF(Oil_frac>Carbon_no,'CVD Data'!E23+'CVD Data'!E24,0) -> 3.425 | F9: =IF(Oil_frac>Carbon_no,'CVD Data'!F23+'CVD Data'!F24,0) -> 3.413 | G9: =IF(Oil_frac>Carbon_no,'CVD Data'!G23+'CVD Data'!G24,0) -> 3.437 | H9: =IF(Oil_frac>Carbon_no,'CVD Data'!H23+'CVD Data'!H24,0) -> 3.822 | I9: =IF(Oil_frac>Carbon_no,'CVD Data'!I23+'CVD Data'!I24,0) -> 5.234 | J9: =IF(Oil_frac>Carbon_no,'CVD Data'!J23+'CVD Data'!J24,0) -> 0 | K9: =IF(Oil_frac>Carbon_no,'CVD Data'!K23+'CVD Data'!K24,0) -> 0 | L9: =IF(Oil_frac>Carbon_no,'CVD Data'!L23+'CVD Data'!L24,0) -> 0 | N9: 4
A10: C5 | C10: =IF(Oil_frac>Carbon_no,'CVD Data'!C25+'CVD Data'!C26,0) -> 0 | D10: =IF(Oil_frac>Carbon_no,'CVD Data'!D25+'CVD Data'!D26,0) -> 0 | E10: =IF(Oil_frac>Carbon_no,'CVD Data'!E25+'CVD Data'!E26,0) -> 0 | F10: =IF(Oil_frac>Carbon_no,'CVD Data'!F25+'CVD Data'!F26,0) -> 0 | G10: =IF(Oil_frac>Carbon_no,'CVD Data'!G25+'CVD Data'!G26,0) -> 0 | H10: =IF(Oil_frac>Carbon_no,'CVD Data'!H25+'CVD Data'!H26,0) -> 0 | I10: =IF(Oil_frac>Carbon_no,'CVD Data'!I25+'CVD Data'!I26,0) -> 0 | J10: =IF(Oil_frac>Carbon_no,'CVD Data'!J25+'CVD Data'!J26,0) -> 0 | K10: =IF(Oil_frac>Carbon_no,'CVD Data'!K25+'CVD Data'!K26,0) -> 0 | L10: =IF(Oil_frac>Carbon_no,'CVD Data'!L25+'CVD Data'!L26,0) -> 0 | N10: 5
A11: C6 | C11: =IF(Oil_frac>Carbon_no,'CVD Data'!C27,0) -> 0 | D11: =IF(Oil_frac>Carbon_no,'CVD Data'!D27,0) -> 0 | E11: =IF(Oil_frac>Carbon_no,'CVD Data'!E27,0) -> 0 | F11: =IF(Oil_frac>Carbon_no,'CVD Data'!F27,0) -> 0 | G11: =IF(Oil_frac>Carbon_no,'CVD Data'!G27,0) -> 0 | H11: =IF(Oil_frac>Carbon_no,'CVD Data'!H27,0) -> 0 | I11: =IF(Oil_frac>Carbon_no,'CVD Data'!I27,0) -> 0 | J11: =IF(Oil_frac>Carbon_no,'CVD Data'!J27+'CVD Data'!J33,0) -> 0 | K11: =IF(Oil_frac>Carbon_no,'CVD Data'!K27+'CVD Data'!K33,0) -> 0 | L11: =IF(Oil_frac>Carbon_no,'CVD Data'!L27+'CVD Data'!L33,0) -> 0 | N11: 6
A12: Gas volume at surface (ft3/mol of equil gas) | C12: =SUM(C8:C11)*UGC*Tstd/Pstd/100 -> 333.3388403 | D12: 346.8196924 | E12: 356.1169627 | F12: 361.6292684 | G12: 364.3778285 | H12: 363.3907765 | I12: 313.4573357 | J12: 0 | K12: 0 | L12: 0
A15: Moles of oil
A16: iC4 | C16: =IF(Oil_frac<=Carbon_no,'CVD Data'!C23,0) -> 0 | D16: =IF(Oil_frac<=Carbon_no,'CVD Data'!D23,0) -> 0 | E16: =IF(Oil_frac<=Carbon_no,'CVD Data'!E23,0) -> 0 | F16: =IF(Oil_frac<=Carbon_no,'CVD Data'!F23,0) -> 0 | G16: =IF(Oil_frac<=Carbon_no,'CVD Data'!G23,0) -> 0 | H16: =IF(Oil_frac<=Carbon_no,'CVD Data'!H23,0) -> 0 | I16: =IF(Oil_frac<=Carbon_no,'CVD Data'!I23,0) -> 0 | J16: =IF(Oil_frac<=Carbon_no,'CVD Data'!J23,0) -> 0 | K16: =IF(Oil_frac<=Carbon_no,'CVD Data'!K23,0) -> 0 | L16: =IF(Oil_frac<=Carbon_no,'CVD Data'!L23,0) -> 0 | N16: 4
A17: nC4 | C17: =IF(Oil_frac<=Carbon_no,'CVD Data'!C24,0) -> 0 | D17: =IF(Oil_frac<=Carbon_no,'CVD Data'!D24,0) -> 0 | E17: =IF(Oil_frac<=Carbon_no,'CVD Data'!E24,0) -> 0 | F17: =IF(Oil_frac<=Carbon_no,'CVD Data'!F24,0) -> 0 | G17: =IF(Oil_frac<=Carbon_no,'CVD Data'!G24,0) -> 0 | H17: =IF(Oil_frac<=Carbon_no,'CVD Data'!H24,0) -> 0 | I17: =IF(Oil_frac<=Carbon_no,'CVD Data'!I24,0) -> 0 | J17: =IF(Oil_frac<=Carbon_no,'CVD Data'!J24,0) -> 0 | K17: =IF(Oil_frac<=Carbon_no,'CVD Data'!K24,0) -> 0 | L17: =IF(Oil_frac<=Carbon_no,'CVD Data'!L24,0) -> 0 | N17: 4
A18: iC5 | C18: =IF(Oil_frac<=Carbon_no,'CVD Data'!C25,0) -> 0.857 | D18: =IF(Oil_frac<=Carbon_no,'CVD Data'!D25,0) -> 0.8 | E18: =IF(Oil_frac<=Carbon_no,'CVD Data'!E25,0) -> 0.766 | F18: =IF(Oil_frac<=Carbon_no,'CVD Data'!F25,0) -> 0.724 | G18: =IF(Oil_frac<=Carbon_no,'CVD Data'!G25,0) -> 0.69 | H18: =IF(Oil_frac<=Carbon_no,'CVD Data'!H25,0) -> 0.815 | I18: =IF(Oil_frac<=Carbon_no,'CVD Data'!I25,0) -> 1.213 | J18: =IF(Oil_frac<=Carbon_no,'CVD Data'!J25,0) -> 0 | K18: =IF(Oil_frac<=Carbon_no,'CVD Data'!K25,0) -> 0 | L18: =IF(Oil_frac<=Carbon_no,'CVD Data'!L25,0) -> 0 | N18: 5
A19: nC5 | C19: =IF(Oil_frac<=Carbon_no,'CVD Data'!C26,0) -> 0.842 | D19: =IF(Oil_frac<=Carbon_no,'CVD Data'!D26,0) -> 0.787 | E19: =IF(Oil_frac<=Carbon_no,'CVD Data'!E26,0) -> 0.757 | F19: =IF(Oil_frac<=Carbon_no,'CVD Data'!F26,0) -> 0.716 | G19: =IF(Oil_frac<=Carbon_no,'CVD Data'!G26,0) -> 0.681 | H19: =IF(Oil_frac<=Carbon_no,'CVD Data'!H26,0) -> 0.762 | I19: =IF(Oil_frac<=Carbon_no,'CVD Data'!I26,0) -> 1.151 | J19: =IF(Oil_frac<=Carbon_no,'CVD Data'!J26,0) -> 0 | K19: =IF(Oil_frac<=Carbon_no,'CVD Data'!K26,0) -> 0 | L19: =IF(Oil_frac<=Carbon_no,'CVD Data'!L26,0) -> 0 | N19: 5
A20: C6 | C20: =IF(Oil_frac<=Carbon_no,'CVD Data'!C27,0) -> 0.968 | D20: =IF(Oil_frac<=Carbon_no,'CVD Data'!D27,0) -> 0.857 | E20: =IF(Oil_frac<=Carbon_no,'CVD Data'!E27,0) -> 0.771 | F20: =IF(Oil_frac<=Carbon_no,'CVD Data'!F27,0) -> 0.701 | G20: =IF(Oil_frac<=Carbon_no,'CVD Data'!G27,0) -> 0.647 | H20: =IF(Oil_frac<=Carbon_no,'CVD Data'!H27,0) -> 0.701 | I20: =IF(Oil_frac<=Carbon_no,'CVD Data'!I27,0) -> 1.268 | J20: =IF(Oil_frac<=Carbon_no,'CVD Data'!J27,0) -> 0 | K20: =IF(Oil_frac<=Carbon_no,'CVD Data'!K27,0) -> 0 | L20: =IF(Oil_frac<=Carbon_no,'CVD Data'!L27,0) -> 0 | N20: 6
A21: C7 | C21: =IF(Oil_frac<=Carbon_no,'CVD Data'!C28,0) -> 0 | D21: =IF(Oil_frac<=Carbon_no,'CVD Data'!D28,0) -> 0 | E21: =IF(Oil_frac<=Carbon_no,'CVD Data'!E28,0) -> 0 | F21: =IF(Oil_frac<=Carbon_no,'CVD Data'!F28,0) -> 0 | G21: =IF(Oil_frac<=Carbon_no,'CVD Data'!G28,0) -> 0 | H21: =IF(Oil_frac<=Carbon_no,'CVD Data'!H28,0) -> 0 | I21: =IF(Oil_frac<=Carbon_no,'CVD Data'!I28,0) -> 0 | N21: 7
A22: C8 | C22: =IF(Oil_frac<=Carbon_no,'CVD Data'!C29,0) -> 0 | D22: =IF(Oil_frac<=Carbon_no,'CVD Data'!D29,0) -> 0 | E22: =IF(Oil_frac<=Carbon_no,'CVD Data'!E29,0) -> 0 | F22: =IF(Oil_frac<=Carbon_no,'CVD Data'!F29,0) -> 0 | G22: =IF(Oil_frac<=Carbon_no,'CVD Data'!G29,0) -> 0 | H22: =IF(Oil_frac<=Carbon_no,'CVD Data'!H29,0) -> 0 | I22: =IF(Oil_frac<=Carbon_no,'CVD Data'!I29,0) -> 0 | N22: 8
A23: C9 | C23: =IF(Oil_frac<=Carbon_no,'CVD Data'!C30,0) -> 0 | D23: =IF(Oil_frac<=Carbon_no,'CVD Data'!D30,0) -> 0 | E23: =IF(Oil_frac<=Carbon_no,'CVD Data'!E30,0) -> 0 | F23: =IF(Oil_frac<=Carbon_no,'CVD Data'!F30,0) -> 0 | G23: =IF(Oil_frac<=Carbon_no,'CVD Data'!G30,0) -> 0 | H23: =IF(Oil_frac<=Carbon_no,'CVD Data'!H30,0) -> 0 | I23: =IF(Oil_frac<=Carbon_no,'CVD Data'!I30,0) -> 0 | N23: 9
A24: C10 | C24: =IF(Oil_frac<=Carbon_no,'CVD Data'!C31,0) -> 0 | D24: =IF(Oil_frac<=Carbon_no,'CVD Data'!D31,0) -> 0 | E24: =IF(Oil_frac<=Carbon_no,'CVD Data'!E31,0) -> 0 | F24: =IF(Oil_frac<=Carbon_no,'CVD Data'!F31,0) -> 0 | G24: =IF(Oil_frac<=Carbon_no,'CVD Data'!G31,0) -> 0 | H24: =IF(Oil_frac<=Carbon_no,'CVD Data'!H31,0) -> 0 | I24: =IF(Oil_frac<=Carbon_no,'CVD Data'!I31,0) -> 0 | N24: 10
A25: C11 | C25: =IF(Oil_frac<=Carbon_no,'CVD Data'!C32,0) -> 0 | D25: =IF(Oil_frac<=Carbon_no,'CVD Data'!D32,0) -> 0 | E25: =IF(Oil_frac<=Carbon_no,'CVD Data'!E32,0) -> 0 | F25: =IF(Oil_frac<=Carbon_no,'CVD Data'!F32,0) -> 0 | G25: =IF(Oil_frac<=Carbon_no,'CVD Data'!G32,0) -> 0 | H25: =IF(Oil_frac<=Carbon_no,'CVD Data'!H32,0) -> 0 | I25: =IF(Oil_frac<=Carbon_no,'CVD Data'!I32,0) -> 0 | N25: 11
A26: ='CVD Data'!B33 -> C7+ | C26: =IF(Oil_frac<=Carbon_no,'CVD Data'!C33,0) -> 9.529 | D26: =IF(Oil_frac<=Carbon_no,'CVD Data'!D33,0) -> 6.2 | E26: =IF(Oil_frac<=Carbon_no,'CVD Data'!E33,0) -> 3.9 | F26: =IF(Oil_frac<=Carbon_no,'CVD Data'!F33,0) -> 2.6 | G26: =IF(Oil_frac<=Carbon_no,'CVD Data'!G33,0) -> 2 | H26: =IF(Oil_frac<=Carbon_no,'CVD Data'!H33,0) -> 2 | I26: =IF(Oil_frac<=Carbon_no,'CVD Data'!I33,0) -> 13.8 | J26: =IF(Oil_frac<=Carbon_no,'CVD Data'!J33,0) -> 0 | K26: =IF(Oil_frac<=Carbon_no,'CVD Data'!K33,0) -> 0 | L26: =IF(Oil_frac<=Carbon_no,'CVD Data'!L33,0) -> 0 | N26: =N_plus -> 7
A28: Volume of Oil | N28: MW | O28: Density | P28: (lb/ft3)
A29: iC4 | C29: =C16*MW/Density/100 -> 0 | D29: 0 | E29: 0 | F29: 0 | G29: 0 | H29: 0 | I29: 0 | J29: 0 | K29: 0 | L29: 0 | N29: ='CVD Data'!Q23 -> 58.12 | O29: ='CVD Data'!R23 -> 35.01
A30: nC4 | C30: =C17*MW/Density/100 -> 0 | D30: 0 | E30: 0 | F30: 0 | G30: 0 | H30: 0 | I30: 0 | J30: 0 | K30: 0 | L30: 0 | N30: ='CVD Data'!Q24 -> 58.12 | O30: ='CVD Data'!R24 -> 36.45
A31: iC5 | C31: =C18*MW/Density/100 -> 0.01580182724 | D31: 0.01475083056 | E31: 0.01412392027 | F31: 0.01334950166 | G31: 0.01272259136 | H31: 0.01502740864 | I31: 0.02236594684 | J31: 0 | K31: 0 | L31: 0 | N31: ='CVD Data'!Q25 -> 72.15 | O31: ='CVD Data'!R25 -> 39.13
A32: nC5 | C32: =C19*MW/Density/100 -> 0.0154580916 | D32: 0.01444835878 | E32: 0.01389759542 | F32: 0.0131448855 | G32: 0.01250232824 | H32: 0.01398938931 | I32: 0.0211309542 | J32: 0 | K32: 0 | L32: 0 | N32: ='CVD Data'!Q26 -> 72.15 | O32: ='CVD Data'!R26 -> 39.3
A33: C6 | C33: =C20*MW/Density/100 -> 0.0202506822 | D33: 0.01792854819 | E33: 0.01612941733 | F33: 0.0146650085 | G33: 0.01353532168 | H33: 0.0146650085 | I33: 0.02652672008 | J33: 0 | K33: 0 | L33: 0 | N33: ='CVD Data'!Q27 -> 86.17 | O33: ='CVD Data'!R27 -> 41.19
A34: C7 | C34: =C21*MW/Density/100 -> 0 | D34: 0 | E34: 0 | F34: 0 | G34: 0 | H34: 0 | I34: 0 | N34: ='CVD Data'!Q28 -> 100.2 | O34: ='CVD Data'!R28 -> 42.58334374
A35: C8 | C35: =C22*MW/Density/100 -> 0 | D35: 0 | E35: 0 | F35: 0 | G35: 0 | H35: 0 | I35: 0 | N35: ='CVD Data'!Q29 -> 114.2 | O35: ='CVD Data'!R29 -> 44.19403171
A36: C9 | C36: =C23*MW/Density/100 -> 0 | D36: 0 | E36: 0 | F36: 0 | G36: 0 | H36: 0 | I36: 0 | N36: ='CVD Data'!Q30 -> 128.3 | O36: ='CVD Data'!R30 -> 45.34898239
A37: C10 | C37: =C24*MW/Density/100 -> 0 | D37: 0 | E37: 0 | F37: 0 | G37: 0 | H37: 0 | I37: 0 | N37: ='CVD Data'!Q31 -> 142.3 | O37: ='CVD Data'!R31 -> 45.67986016
A38: C11 | C38: =C25*MW/Density/100 -> 0 | D38: 0 | E38: 0 | F38: 0 | G38: 0 | H38: 0 | I38: 0 | N38: ='CVD Data'!Q32 -> 156.3 | O38: ='CVD Data'!R32 -> 46
A39: =A26 -> C7+ | C39: =IF('CVD Data'!C10>1,C26*'CVD Data'!C$35/('CVD Data'!C$36*62.4)/100,0) -> 0.3171461932 | D39: =IF('CVD Data'!D10>1,D26*'CVD Data'!D35/('CVD Data'!D36*62.4)/100,0) -> 0.1856275619 | E39: =IF('CVD Data'!E10>1,E26*'CVD Data'!E35/('CVD Data'!E36*62.4)/100,0) -> 0.1080323224 | F39: =IF('CVD Data'!F10>1,F26*'CVD Data'!F35/('CVD Data'!F36*62.4)/100,0) -> 0.06761662181 | G39: =IF('CVD Data'!G10>1,G26*'CVD Data'!G35/('CVD Data'!G36*62.4)/100,0) -> 0.05000471707 | H39: =IF('CVD Data'!H10>1,H26*'CVD Data'!H35/('CVD Data'!H36*62.4)/100,0) -> 0.04845784168 | I39: =IF('CVD Data'!I10>1,I26*'CVD Data'!I35/('CVD Data'!I36*62.4)/100,0) -> 0.370572146 | J39: =IF('CVD Data'!J10>1,J26*'CVD Data'!J35/('CVD Data'!J36*62.4)/100,0) -> 0 | K39: =IF('CVD Data'!K10>1,K26*'CVD Data'!K35/('CVD Data'!K36*62.4)/100,0) -> 0 | L39: =IF('CVD Data'!L10>1,L26*'CVD Data'!L35/('CVD Data'!L36*62.4)/100,0) -> 0
A40: Oil volume at surface (ft3/mol of equil gas) | C40: =SUM(C29:C39) -> 0.3686567942 | D40: 0.2327552995 | E40: 0.1521832554 | F40: 0.1087760175 | G40: 0.08876495836 | H40: 0.09213964813 | I40: 0.4405957671 | J40: 0 | K40: 0 | L40: 0
A42: Oil-gas ratio (bbl/MMscf) | C42: =IF(C12>0,C40/C12/5.6146*1000000,0) -> 196.977899 | D42: 119.5300243 | E42: 76.11239502 | F42: 53.5735913 | G42: 43.38811565 | H42: 45.15998907 | I42: =IF(I12>0,I40/I12/5.6146*1000000,0) -> 250.3473861 | J42: 0 | K42: 0 | L42: 0
A43: GOR (scf/STB) | C43: =1000000/C42 -> 5076.711678 | D43: =1000000/D42 -> 8366.098857 | E43: 13138.4645 | F43: 18665.91311 | G43: 23047.7859 | H43: 22143.49517 | I43: 3994.449535
A44: Gas FVF (res bbl/Mscf) | C44: =IF(C12>0,1000*('CVD Data'!C14*UGC*Tres/P/5.6146)/C12,0) -> 0.8081539505 | D44: =IF(D12>0,1000*('CVD Data'!D14*UGC*Tres/P/5.6146)/D12,0) -> 0.8118044961 | E44: =IF(E12>0,1000*('CVD Data'!E14*UGC*Tres/P/5.6146)/E12,0) -> 0.9397354263 | F44: =IF(F12>0,1000*('CVD Data'!F14*UGC*Tres/P/5.6146)/F12,0) -> 1.271234534 | G44: =IF(G12>0,1000*('CVD Data'!G14*UGC*Tres/P/5.6146)/G12,0) -> 1.894267184 | H44: =IF(H12>0,1000*('CVD Data'!H14*UGC*Tres/P/5.6146)/H12,0) -> 3.768848603 | I44: =IF(I12>0,1000*('CVD Data'!I14*UGC*Tres/P/5.6146)/I12,0) -> 263.8802944 | J44: =IF(J12>0,1000*('CVD Data'!J14*UGC*Tres/P/5.6146)/J12,0) -> 0 | K44: =IF(K12>0,1000*('CVD Data'!K14*UGC*Tres/P/5.6146)/K12,0) -> 0 | L44: =IF(L12>0,1000*('CVD Data'!L14*UGC*Tres/P/5.6146)/L12,0) -> 0

Sheet Rec factors calc
A1: Calculated recovery factors
A4: Calculated recovery factors for each component
A6: Abandonment pressure (psia) | B6: =P_init -> 10440 | C6: =IF('CVD Data'!C10>1,'CVD Data'!C10,A6) -> 5535 | D6: =IF('CVD Data'!D10>1,'CVD Data'!D10,B6) -> 4500 | E6: =IF('CVD Data'!E10>1,'CVD Data'!E10,D6) -> 3500 | F6: =IF('CVD Data'!F10>1,'CVD Data'!F10,E6) -> 2500 | G6: =IF('CVD Data'!G10>1,'CVD Data'!G10,F6) -> 1700 | H6: =IF('CVD Data'!H10>1,'CVD Data'!H10,G6) -> 900 | I6: =IF('CVD Data'!I10>1,'CVD Data'!I10,H6) -> 2 | J6: =IF('CVD Data'!J10>1,'CVD Data'!J10,I6) -> 2 | K6: =IF('CVD Data'!K10>1,'CVD Data'!K10,J6) -> 2 | L6: =IF('CVD Data'!L10>1,'CVD Data'!L10,K6) -> 2
A8: Component
A9: ='CVD Data'!B20 -> C1 | B9: 0 | C9: =IF(C$6="","",1-'CVD analysis'!C56/'CVD analysis'!$C56*N_init) -> 0.16285 | D9: =IF(D$6="","",1-'CVD analysis'!D56/'CVD analysis'!$C56*N_init) -> 0.2332047101 | E9: =IF(E$6="","",1-'CVD analysis'!E56/'CVD analysis'!$C56*N_init) -> 0.3608984017 | F9: =IF(F$6="","",1-'CVD analysis'!F56/'CVD analysis'!$C56*N_init) -> 0.5275373631 | G9: =IF(G$6="","",1-'CVD analysis'!G56/'CVD analysis'!$C56*N_init) -> 0.6795297536 | H9: =IF(H$6="","",1-'CVD analysis'!H56/'CVD analysis'!$C56*N_init) -> 0.841685318 | I9: =IF(I$6="","",1-'CVD analysis'!I56/'CVD analysis'!$C56*N_init) -> 0.9883843552 | J9: =IF(J$6="","",1-'CVD analysis'!J56/'CVD analysis'!$C56*N_init) -> 0.9883843552 | K9: =IF(K$6="","",1-'CVD analysis'!K56/'CVD analysis'!$C56*N_init) -> 0.9883843552 | L9: =IF(L$6="","",1-'CVD analysis'!L56/'CVD analysis'!$C56*N_init) -> 0.9883843552
A10: ='CVD Data'!B21 -> C2 | B10: 0 | C10: =IF(C$6="","",1-'CVD analysis'!C57/'CVD analysis'!$C57*N_init) -> 0.16285 | D10: =IF(D$6="","",1-'CVD analysis'!D57/'CVD analysis'!$C57*N_init) -> 0.2310850286 | E10: =IF(E$6="","",1-'CVD analysis'!E57/'CVD analysis'!$C57*N_init) -> 0.3519914376 | F10: =IF(F$6="","",1-'CVD analysis'!F57/'CVD analysis'!$C57*N_init) -> 0.5119843896 | G10: =IF(G$6="","",1-'CVD analysis'!G57/'CVD analysis'!$C57*N_init) -> 0.6599832776 | H10: =IF(H$6="","",1-'CVD analysis'!H57/'CVD analysis'!$C57*N_init) -> 0.8221562664 | I10: =IF(I$6="","",1-'CVD analysis'!I57/'CVD analysis'!$C57*N_init) -> 0.9923503059 | J10: =IF(J$6="","",1-'CVD analysis'!J57/'CVD analysis'!$C57*N_init) -> 0.9923503059 | K10: =IF(K$6="","",1-'CVD analysis'!K57/'CVD analysis'!$C57*N_init) -> 0.9923503059 | L10: =IF(L$6="","",1-'CVD analysis'!L57/'CVD analysis'!$C57*N_init) -> 0.9923503059 | P10: V_Pinit | Q10: =Tablook(-P_init,P_CCE,V_CCE) -> 0.83715
A11: ='CVD Data'!B22 -> C3 | B11: 0 | C11: =IF(C$6="","",1-'CVD analysis'!C58/'CVD analysis'!$C58*N_init) -> 0.16285 | D11: =IF(D$6="","",1-'CVD analysis'!D58/'CVD analysis'!$C58*N_init) -> 0.2283713309 | E11: =IF(E$6="","",1-'CVD analysis'!E58/'CVD analysis'!$C58*N_init) -> 0.3434115412 | F11: =IF(F$6="","",1-'CVD analysis'!F58/'CVD analysis'!$C58*N_init) -> 0.4911549133 | G11: =IF(G$6="","",1-'CVD analysis'!G58/'CVD analysis'!$C58*N_init) -> 0.6250070404 | H11: =IF(H$6="","",1-'CVD analysis'!H58/'CVD analysis'!$C58*N_init) -> 0.7840029961 | I11: =IF(I$6="","",1-'CVD analysis'!I58/'CVD analysis'!$C58*N_init) -> 0.9873986711 | J11: =IF(J$6="","",1-'CVD analysis'!J58/'CVD analysis'!$C58*N_init) -> 0.9873986711 | K11: =IF(K$6="","",1-'CVD analysis'!K58/'CVD analysis'!$C58*N_init) -> 0.9873986711 | L11: =IF(L$6="","",1-'CVD analysis'!L58/'CVD analysis'!$C58*N_init) -> 0.9873986711 | P11: V_Pdew | Q11: =Tablook(-Pdew,P_CCE,V_CCE) -> 1
A12: C4's | B12: 0 | C12: =IF(C$6="","",1-('CVD analysis'!C59+'CVD analysis'!C60)/('CVD analysis'!$C59+'CVD analysis'!$C60)*N_init) -> 0.16285 | D12: =IF(D$6="","",1-('CVD analysis'!D59+'CVD analysis'!D60)/('CVD analysis'!$C59+'CVD analysis'!$C60)*N_init) -> 0.2259224984 | E12: =IF(E$6="","",1-('CVD analysis'!E59+'CVD analysis'!E60)/('CVD analysis'!$C59+'CVD analysis'!$C60)*N_init) -> 0.333369144 | F12: =IF(F$6="","",1-('CVD analysis'!F59+'CVD analysis'!F60)/('CVD analysis'!$C59+'CVD analysis'!$C60)*N_init) -> 0.4708768111 | G12: =IF(G$6="","",1-('CVD analysis'!G59+'CVD analysis'!G60)/('CVD analysis'!$C59+'CVD analysis'!$C60)*N_init) -> 0.5963316531 | H12: =IF(H$6="","",1-('CVD analysis'!H59+'CVD analysis'!H60)/('CVD analysis'!$C59+'CVD analysis'!$C60)*N_init) -> 0.7478090374 | I12: =IF(I$6="","",1-('CVD analysis'!I59+'CVD analysis'!I60)/('CVD analysis'!$C59+'CVD analysis'!$C60)*N_init) -> 0.9810667517 | J12: =IF(J$6="","",1-('CVD analysis'!J59+'CVD analysis'!J60)/('CVD analysis'!$C59+'CVD analysis'!$C60)*N_init) -> 0.9810667517 | K12: =IF(K$6="","",1-('CVD analysis'!K59+'CVD analysis'!K60)/('CVD analysis'!$C59+'CVD analysis'!$C60)*N_init) -> 0.9810667517 | L12: =IF(L$6="","",1-('CVD analysis'!L59+'CVD analysis'!L60)/('CVD analysis'!$C59+'CVD analysis'!$C60)*N_init) -> 0.9810667517 | P12: N_init | Q12: =V_Pinit/V_Pdew -> 0.83715
A13: C5's | B13: 0 | C13: =IF(C$6="","",1-('CVD analysis'!C61+'CVD analysis'!C62)/('CVD analysis'!$C61+'CVD analysis'!$C62)*N_init) -> 0.16285 | D13: =IF(D$6="","",1-('CVD analysis'!D61+'CVD analysis'!D62)/('CVD analysis'!$C61+'CVD analysis'!$C62)*N_init) -> 0.2252194587 | E13: =IF(E$6="","",1-('CVD analysis'!E61+'CVD analysis'!E62)/('CVD analysis'!$C61+'CVD analysis'!$C62)*N_init) -> 0.3303095836 | F13: =IF(F$6="","",1-('CVD analysis'!F61+'CVD analysis'!F62)/('CVD analysis'!$C61+'CVD analysis'!$C62)*N_init) -> 0.4579190336 | G13: =IF(G$6="","",1-('CVD analysis'!G61+'CVD analysis'!G62)/('CVD analysis'!$C61+'CVD analysis'!$C62)*N_init) -> 0.5679905804 | H13: =IF(H$6="","",1-('CVD analysis'!H61+'CVD analysis'!H62)/('CVD analysis'!$C61+'CVD analysis'!$C62)*N_init) -> 0.7054639338 | I13: =IF(I$6="","",1-('CVD analysis'!I61+'CVD analysis'!I62)/('CVD analysis'!$C61+'CVD analysis'!$C62)*N_init) -> 0.9371924542 | J13: =IF(J$6="","",1-('CVD analysis'!J61+'CVD analysis'!J62)/('CVD analysis'!$C61+'CVD analysis'!$C62)*N_init) -> 0.9371924542 | K13: =IF(K$6="","",1-('CVD analysis'!K61+'CVD analysis'!K62)/('CVD analysis'!$C61+'CVD analysis'!$C62)*N_init) -> 0.9371924542 | L13: =IF(L$6="","",1-('CVD analysis'!L61+'CVD analysis'!L62)/('CVD analysis'!$C61+'CVD analysis'!$C62)*N_init) -> 0.9371924542
A14: ='CVD Data'!B27 -> C6 | B14: 0 | C14: =IF(C$6="","",1-'CVD analysis'!C63/'CVD analysis'!$C63*N_init) -> 0.16285 | D14: =IF(D$6="","",1-'CVD analysis'!D63/'CVD analysis'!$C63*N_init) -> 0.2219644824 | E14: =IF(E$6="","",1-'CVD analysis'!E63/'CVD analysis'!$C63*N_init) -> 0.3153402972 | F14: =IF(F$6="","",1-'CVD analysis'!F63/'CVD analysis'!$C63*N_init) -> 0.4243729012 | G14: =IF(G$6="","",1-'CVD analysis'!G63/'CVD analysis'!$C63*N_init) -> 0.5155445727 | H14: =IF(H$6="","",1-'CVD analysis'!H63/'CVD analysis'!$C63*N_init) -> 0.622800888 | I14: =IF(I$6="","",1-'CVD analysis'!I63/'CVD analysis'!$C63*N_init) -> 0.8409579576 | J14: =IF(J$6="","",1-'CVD analysis'!J63/'CVD analysis'!$C63*N_init) -> 0.8409579576 | K14: =IF(K$6="","",1-'CVD analysis'!K63/'CVD analysis'!$C63*N_init) -> 0.8409579576 | L14: =IF(L$6="","",1-'CVD analysis'!L63/'CVD analysis'!$C63*N_init) -> 0.8409579576
A15: ='CVD Data'!B33 -> C7+ | B15: 0 | C15: =IF(C$6="","",1-'CVD analysis'!C69/'CVD analysis'!$C69*N_init) -> 0.16285 | D15: =IF(D$6="","",1-'CVD analysis'!D69/'CVD analysis'!$C69*N_init) -> 0.2062942985 | E15: =IF(E$6="","",1-'CVD analysis'!E69/'CVD analysis'!$C69*N_init) -> 0.2542756707 | F15: =IF(F$6="","",1-'CVD analysis'!F69/'CVD analysis'!$C69*N_init) -> 0.2953565513 | G15: =IF(G$6="","",1-'CVD analysis'!G69/'CVD analysis'!$C69*N_init) -> 0.3239860447 | H15: =IF(H$6="","",1-'CVD analysis'!H69/'CVD analysis'!$C69*N_init) -> 0.3550719043 | I15: =IF(I$6="","",1-'CVD analysis'!I69/'CVD analysis'!$C69*N_init) -> 0.5962607142 | J15: =IF(J$6="","",1-'CVD analysis'!J69/'CVD analysis'!$C69*N_init) -> 0.5962607142 | K15: =IF(K$6="","",1-'CVD analysis'!K69/'CVD analysis'!$C69*N_init) -> 0.5962607142 | L15: =IF(L$6="","",1-'CVD analysis'!L69/'CVD analysis'!$C69*N_init) -> 0.5962607142
A17: Gas | B17: 0 | C17: =IF(C$6="","",1-(1-C42/Initial_gas)*N_init) -> 0.16285 | D17: 0.2323214327 | E17: 0.3575669308 | F17: 0.5209064889 | G17: 0.6700131402 | H17: 0.8314743462 | I17: 0.9880837777 | J17: 0.9880837777 | K17: 0.9880837777 | L17: 0.9880837777
A18: Oil | B18: 0 | C18: =IF(C$6="","",1-(1-C61/Initial_oil)*N_init) -> 0.16285 | D18: 0.205006618 | E18: 0.2534015642 | F18: 0.2978262777 | G18: 0.3306698438 | H18: 0.3676871251 | I18: 0.5667285506 | J18: 0.5667285506 | K18: 0.5667285506 | L18: 0.5667285506
A21: Moles produced at each step
A22: N2 | C22: 0 | D22: ='CVD analysis'!C53-'CVD analysis'!D53 -> 0.0323028 | E22: ='CVD analysis'!D53-'CVD analysis'!E53 -> 0.06063732 | F22: ='CVD analysis'!E53-'CVD analysis'!F53 -> 0.0794937 | G22: ='CVD analysis'!F53-'CVD analysis'!G53 -> 0.07120478 | H22: ='CVD analysis'!G53-'CVD analysis'!H53 -> 0.07572176 | I22: ='CVD analysis'!H53-'CVD analysis'!I53 -> 0.0666449 | J22: ='CVD analysis'!I53-'CVD analysis'!J53 -> 0 | K22: ='CVD analysis'!J53-'CVD analysis'!K53 -> 0 | L22: ='CVD analysis'!K53-'CVD analysis'!L53 -> 0
A23: CO2 | C23: 0 | D23: ='CVD analysis'!C54-'CVD analysis'!D54 -> 0.14588104 | E23: ='CVD analysis'!D54-'CVD analysis'!E54 -> 0.26089452 | F23: ='CVD analysis'!E54-'CVD analysis'!F54 -> 0.34153515 | G23: ='CVD analysis'!F54-'CVD analysis'!G54 -> 0.31545184 | H23: ='CVD analysis'!G54-'CVD analysis'!H54 -> 0.3441094 | I23: ='CVD analysis'!H54-'CVD analysis'!I54 -> 0.32069128 | J23: ='CVD analysis'!I54-'CVD analysis'!J54 -> 0 | K23: ='CVD analysis'!J54-'CVD analysis'!K54 -> 0 | L23: ='CVD analysis'!K54-'CVD analysis'!L54 -> 0
A24: H2S | C24: 0 | D24: ='CVD analysis'!C55-'CVD analysis'!D55 -> 0 | E24: ='CVD analysis'!D55-'CVD analysis'!E55 -> 0 | F24: ='CVD analysis'!E55-'CVD analysis'!F55 -> 0 | G24: ='CVD analysis'!F55-'CVD analysis'!G55 -> 0 | H24: ='CVD analysis'!G55-'CVD analysis'!H55 -> 0 | I24: ='CVD analysis'!H55-'CVD analysis'!I55 -> 0 | J24: ='CVD analysis'!I55-'CVD analysis'!J55 -> 0 | K24: ='CVD analysis'!J55-'CVD analysis'!K55 -> 0 | L24: ='CVD analysis'!K55-'CVD analysis'!L55 -> 0
A25: C1 | C25: 0 | D25: ='CVD analysis'!C56-'CVD analysis'!D56 -> 5.73578088 | E25: ='CVD analysis'!D56-'CVD analysis'!E56 -> 10.41043356 | F25: ='CVD analysis'!E56-'CVD analysis'!F56 -> 13.5855093 | G25: ='CVD analysis'!F56-'CVD analysis'!G56 -> 12.39142406 | H25: ='CVD analysis'!G56-'CVD analysis'!H56 -> 13.21999316 | I25: ='CVD analysis'!H56-'CVD analysis'!I56 -> 11.95987492 | J25: ='CVD analysis'!I56-'CVD analysis'!J56 -> 0 | K25: ='CVD analysis'!J56-'CVD analysis'!K56 -> 0 | L25: ='CVD analysis'!K56-'CVD analysis'!L56 -> 0
A26: C2 | C26: 0 | D26: ='CVD analysis'!C57-'CVD analysis'!D57 -> 0.57251728 | E26: ='CVD analysis'!D57-'CVD analysis'!E57 -> 1.01444976 | F26: ='CVD analysis'!E57-'CVD analysis'!F57 -> 1.3424004 | G26: ='CVD analysis'!F57-'CVD analysis'!G57 -> 1.24176574 | H26: ='CVD analysis'!G57-'CVD analysis'!H57 -> 1.36069172 | I26: ='CVD analysis'!H57-'CVD analysis'!I57 -> 1.42799132 | J26: ='CVD analysis'!I57-'CVD analysis'!J57 -> 0 | K26: ='CVD analysis'!J57-'CVD analysis'!K57 -> 0 | L26: ='CVD analysis'!K57-'CVD analysis'!L57 -> 0
A27: C3 | C27: 0 | D27: ='CVD analysis'!C58-'CVD analysis'!D58 -> 0.51851976 | E27: ='CVD analysis'!D58-'CVD analysis'!E58 -> 0.91040004 | F27: ='CVD analysis'!E58-'CVD analysis'!F58 -> 1.16920485 | G27: ='CVD analysis'!F58-'CVD analysis'!G58 -> 1.05927294 | H27: ='CVD analysis'!G58-'CVD analysis'!H58 -> 1.25825504 | I27: ='CVD analysis'!H58-'CVD analysis'!I58 -> 1.60962354 | J27: ='CVD analysis'!I58-'CVD analysis'!J58 -> 0 | K27: ='CVD analysis'!J58-'CVD analysis'!K58 -> 0 | L27: ='CVD analysis'!K58-'CVD analysis'!L58 -> 0
A28: iC4 | C28: 0 | D28: ='CVD analysis'!C59-'CVD analysis'!D59 -> 0.10783552 | E28: ='CVD analysis'!D59-'CVD analysis'!E59 -> 0.18373248 | F28: ='CVD analysis'!E59-'CVD analysis'!F59 -> 0.233805 | G28: ='CVD analysis'!F59-'CVD analysis'!G59 -> 0.21573256 | H28: ='CVD analysis'!G59-'CVD analysis'!H59 -> 0.25865704 | I28: ='CVD analysis'!H59-'CVD analysis'!I59 -> 0.39608954 | J28: ='CVD analysis'!I59-'CVD analysis'!J59 -> 0 | K28: ='CVD analysis'!J59-'CVD analysis'!K59 -> 0 | L28: ='CVD analysis'!K59-'CVD analysis'!L59 -> 0
A29: nC4 | C29: 0 | D29: ='CVD analysis'!C60-'CVD analysis'!D60 -> 0.17371728 | E29: ='CVD analysis'!D60-'CVD analysis'!E60 -> 0.29590452 | F29: ='CVD analysis'!E60-'CVD analysis'!F60 -> 0.38002305 | G29: ='CVD analysis'!F60-'CVD analysis'!G60 -> 0.34429222 | H29: ='CVD analysis'!G60-'CVD analysis'!H60 -> 0.4175312 | I29: ='CVD analysis'!H60-'CVD analysis'!I60 -> 0.64516242 | J29: ='CVD analysis'!I60-'CVD analysis'!J60 -> 0 | K29: ='CVD analysis'!J60-'CVD analysis'!K60 -> 0 | L29: ='CVD analysis'!K60-'CVD analysis'!L60 -> 0
A30: iC5 | C30: 0 | D30: ='CVD analysis'!C61-'CVD analysis'!D61 -> 0.063808 | E30: ='CVD analysis'!D61-'CVD analysis'!E61 -> 0.10727064 | F30: ='CVD analysis'!E61-'CVD analysis'!F61 -> 0.1302114 | G30: ='CVD analysis'!F61-'CVD analysis'!G61 -> 0.1124286 | H30: ='CVD analysis'!G61-'CVD analysis'!H61 -> 0.1441898 | I30: ='CVD analysis'!H61-'CVD analysis'!I61 -> 0.24131422 | J30: ='CVD analysis'!I61-'CVD analysis'!J61 -> 0 | K30: ='CVD analysis'!J61-'CVD analysis'!K61 -> 0 | L30: ='CVD analysis'!K61-'CVD analysis'!L61 -> 0
A31: nC5 | C31: 0 | D31: ='CVD analysis'!C62-'CVD analysis'!D62 -> 0.06277112 | E31: ='CVD analysis'!D62-'CVD analysis'!E62 -> 0.10601028 | F31: ='CVD analysis'!E62-'CVD analysis'!F62 -> 0.1287726 | G31: ='CVD analysis'!F62-'CVD analysis'!G62 -> 0.11096214 | H31: ='CVD analysis'!G62-'CVD analysis'!H62 -> 0.13481304 | I31: ='CVD analysis'!H62-'CVD analysis'!I62 -> 0.22897994 | J31: ='CVD analysis'!I62-'CVD analysis'!J62 -> 0 | K31: ='CVD analysis'!J62-'CVD analysis'!K62 -> 0 | L31: ='CVD analysis'!K62-'CVD analysis'!L62 -> 0
A32: C6 | C32: 0 | D32: ='CVD analysis'!C63-'CVD analysis'!D63 -> 0.06835432 | E32: ='CVD analysis'!D63-'CVD analysis'!E63 -> 0.10797084 | F32: ='CVD analysis'!E63-'CVD analysis'!F63 -> 0.12607485 | G32: ='CVD analysis'!F63-'CVD analysis'!G63 -> 0.10542218 | H32: ='CVD analysis'!G63-'CVD analysis'!H63 -> 0.12402092 | I32: ='CVD analysis'!H63-'CVD analysis'!I63 -> 0.25225592 | J32: ='CVD analysis'!I63-'CVD analysis'!J63 -> 0 | K32: ='CVD analysis'!J63-'CVD analysis'!K63 -> 0 | L32: ='CVD analysis'!K63-'CVD analysis'!L63 -> 0
A33: C7+ | C33: 0 | D33: ='CVD analysis'!C69-'CVD analysis'!D69 -> 0.494512 | E33: ='CVD analysis'!D69-'CVD analysis'!E69 -> 0.546156 | F33: ='CVD analysis'!E69-'CVD analysis'!F69 -> 0.46761 | G33: ='CVD analysis'!F69-'CVD analysis'!G69 -> 0.32588 | H33: ='CVD analysis'!G69-'CVD analysis'!H69 -> 0.35384 | I33: ='CVD analysis'!H69-'CVD analysis'!I69 -> 2.745372 | J33: ='CVD analysis'!I69-'CVD analysis'!J69 -> 0 | K33: ='CVD analysis'!J69-'CVD analysis'!K69 -> 0 | L33: ='CVD analysis'!K69-'CVD analysis'!L69 -> 0
A36: Moles of gas produced | N36: Carbon_no | P36: Initial gas
A37: up to C3 | C37: =SUM(C22:C27) -> 0 | D37: =SUM(D22:D27) -> 7.00500176 | E37: 12.6568152 | F37: 16.5181434 | G37: 15.07911936 | H37: 16.25877108 | I37: 15.38482596 | J37: 0 | K37: 0 | L37: 0 | P37: =SUM('CVD Data'!C17:C22) -> 84.068
A38: C4 | C38: =IF(Oil_frac>Carbon_no,C28+C29,0) -> 0 | D38: =IF(Oil_frac>Carbon_no,D28+D29,0) -> 0.2815528 | E38: 0.479637 | F38: 0.61382805 | G38: 0.56002478 | H38: 0.67618824 | I38: 1.04125196 | J38: 0 | K38: 0 | L38: 0 | N38: 4 | P38: =IF(Oil_frac>Carbon_no,'CVD Data'!C23+'CVD Data'!C24,0) -> 3.737
A39: C5 | C39: =IF(Oil_frac>Carbon_no,C30+C31,0) -> 0 | D39: =IF(Oil_frac>Carbon_no,D30+D31,0) -> 0 | E39: 0 | F39: 0 | G39: 0 | H39: 0 | I39: 0 | J39: 0 | K39: 0 | L39: 0 | N39: 5 | P39: =IF(Oil_frac>Carbon_no,'CVD Data'!C25+'CVD Data'!C26,0) -> 0
A40: C6 | C40: =IF(Oil_frac>Carbon_no,C32,0) -> 0 | D40: =IF(Oil_frac>Carbon_no,D32,0) -> 0 | E40: 0 | F40: 0 | G40: 0 | H40: 0 | I40: 0 | J40: 0 | K40: 0 | L40: 0 | N40: 6 | P40: =IF(Oil_frac>Carbon_no,'CVD Data'!C27,0) -> 0
A41: Total | C41: =SUM(C37:C40) -> 0 | D41: =SUM(D37:D40) -> 7.28655456 | E41: 13.1364522 | F41: 17.13197145 | G41: 15.63914414 | H41: 16.93495932 | I41: 16.42607792 | J41: 0 | K41: 0 | L41: 0 | P41: =SUM(P37:P40) -> 87.805 | Q41: Initial gas
A42: Cumulative total | C42: =SUM($C$41:C41) -> 0 | D42: =SUM($C$41:D41) -> 7.28655456 | E42: =SUM($C$41:E41) -> 20.42300676 | F42: =SUM($C$41:F41) -> 37.55497821 | G42: =SUM($C$41:G41) -> 53.19412235 | H42: =SUM($C$41:H41) -> 70.12908167 | I42: =SUM($C$41:I41) -> 86.55515959 | J42: =SUM($C$41:J41) -> 86.55515959 | K42: =SUM($C$41:K41) -> 86.55515959 | L42: =SUM($C$41:L41) -> 86.55515959
A45: Moles of oil produced | P45: Initial oil
A46: iC4 | C46: =IF(Oil_frac<=Carbon_no,C28,0) -> 0 | D46: =IF(Oil_frac<=Carbon_no,D28,0) -> 0 | E46: 0 | F46: 0 | G46: 0 | H46: 0 | I46: 0 | J46: 0 | K46: 0 | L46: 0 | N46: 4 | P46: =IF(Oil_frac<=Carbon_no,'CVD Data'!C23,0) -> 0 | Q46: `
A47: nC4 | C47: =IF(Oil_frac<=Carbon_no,C29,0) -> 0 | D47: 0 | E47: 0 | F47: 0 | G47: 0 | H47: 0 | I47: 0 | J47: 0 | K47: 0 | L47: 0 | N47: 4 | P47: =IF(Oil_frac<=Carbon_no,'CVD Data'!C24,0) -> 0
A48: iC5 | C48: 0 | D48: 0.063808 | E48: 0.10727064 | F48: 0.1302114 | G48: 0.1124286 | H48: 0.1441898 | I48: 0.24131422 | J48: 0 | K48: 0 | L48: 0 | N48: 5 | P48: =IF(Oil_frac<=Carbon_no,'CVD Data'!C25,0) -> 0.857
A49: nC5 | C49: 0 | D49: 0.06277112 | E49: 0.10601028 | F49: 0.1287726 | G49: 0.11096214 | H49: 0.13481304 | I49: 0.22897994 | J49: 0 | K49: 0 | L49: 0 | N49: 5 | P49: =IF(Oil_frac<=Carbon_no,'CVD Data'!C26,0) -> 0.842
A50: C6 | C50: 0 | D50: 0.06835432 | E50: 0.10797084 | F50: 0.12607485 | G50: 0.10542218 | H50: 0.12402092 | I50: 0.25225592 | J50: 0 | K50: 0 | L50: 0 | N50: 6 | P50: =IF(Oil_frac<=Carbon_no,'CVD Data'!C27,0) -> 0.968
A51: C7+ | C51: 0 | D51: 0.494512 | E51: 0.546156 | F51: 0.46761 | G51: 0.32588 | H51: 0.35384 | I51: 2.745372 | J51: 0 | K51: 0 | L51: 0 | N51: 7 | P51: =IF(Oil_frac<=Carbon_no,'CVD Data'!C33,0) -> 9.529
A53: Volume of oil produced (ft3/mol of equil gas) | R53: MW | S53: Density | T53: (lb/ft3)
A54: iC4 | C54: =C46*MW/Density/100 -> 0 | D54: =D46*MW/Density/100 -> 0 | E54: 0 | F54: 0 | G54: 0 | H54: 0 | I54: 0 | J54: 0 | K54: 0 | L54: 0 | P54: =P46*MW/Density/100 -> 0 | R54: ='CVD Data'!Q23 -> 58.12 | S54: ='CVD Data'!R23 -> 35.01
A55: nC4 | C55: =C47*MW/Density/100 -> 0 | D55: =D47*MW/Density/100 -> 0 | E55: 0 | F55: 0 | G55: 0 | H55: 0 | I55: 0 | J55: 0 | K55: 0 | L55: 0 | P55: =P47*MW/Density/100 -> 0 | R55: ='CVD Data'!Q24 -> 58.12 | S55: ='CVD Data'!R24 -> 36.45
A56: iC5 | C56: =C48*MW/Density/100 -> 0 | D56: =D48*MW/Density/100 -> 0.001176526246 | E56: 0.001977913794 | F56: 0.002400907874 | G56: 0.002073019037 | H56: 0.002658649136 | I56: 0.004449481465 | J56: 0 | K56: 0 | L56: 0 | P56: =P48*MW/Density/100 -> 0.01580182724 | R56: ='CVD Data'!Q25 -> 72.15 | S56: ='CVD Data'!R25 -> 39.13
A57: nC5 | C57: =C49*MW/Density/100 -> 0 | D57: =D49*MW/Density/100 -> 0.001152401096 | E57: 0.001946219263 | F57: 0.002364107656 | G57: 0.002037129364 | H57: 0.002475002757 | I57: 0.004203792028 | J57: 0 | K57: 0 | L57: 0 | P57: =P49*MW/Density/100 -> 0.0154580916 | R57: ='CVD Data'!Q26 -> 72.15 | S57: ='CVD Data'!R26 -> 39.3
A58: C6 | C58: =C50*MW/Density/100 -> 0 | D58: =D50*MW/Density/100 -> 0.001429981004 | E58: 0.002258763603 | F58: 0.002637501778 | G58: 0.002205445315 | H58: 0.002594533303 | I58: 0.005277225692 | J58: 0 | K58: 0 | L58: 0 | P58: =P50*MW/Density/100 -> 0.0202506822 | R58: ='CVD Data'!Q27 -> 86.17 | S58: ='CVD Data'!R27 -> 41.19
A59: C7+ | C59: =IF(C33>0,C33*'CVD Data'!C$35/('CVD Data'!C$36*62.4)/100,0) -> 0 | D59: =IF(D33>0,D33*'CVD Data'!D$35/('CVD Data'!D$36*62.4)/100,0) -> 0.01480565434 | E59: =IF(E33>0,E33*'CVD Data'!E$35/('CVD Data'!E$36*62.4)/100,0) -> 0.01512884643 | F59: =IF(F33>0,F33*'CVD Data'!F$35/('CVD Data'!F$36*62.4)/100,0) -> 0.01216084943 | G59: =IF(G33>0,G33*'CVD Data'!G$35/('CVD Data'!G$36*62.4)/100,0) -> 0.0081477686 | H59: =IF(H33>0,H33*'CVD Data'!H$35/('CVD Data'!H$36*62.4)/100,0) -> 0.00857316135 | I59: =IF(I33>0,I33*'CVD Data'!I$35/('CVD Data'!I$36*62.4)/100,0) -> 0.07372162273 | J59: =IF(J33>0,J33*'CVD Data'!J$35/('CVD Data'!J$36*62.4)/100,0) -> 0 | K59: =IF(K33>0,K33*'CVD Data'!K$35/('CVD Data'!K$36*62.4)/100,0) -> 0 | L59: =IF(L33>0,L33*'CVD Data'!L$35/('CVD Data'!L$36*62.4)/100,0) -> 0 | P59: =P51*'CVD Data'!C$35/('CVD Data'!C$36*62.4)/100 -> 0.3171461932
A60: Total | C60: =SUM(C54:C59) -> 0 | D60: 0.01856456269 | E60: 0.02131174309 | F60: 0.01956336674 | G60: 0.01446336232 | H60: 0.01630134655 | I60: 0.08765212191 | J60: 0 | K60: 0 | L60: 0 | P60: =SUM(P54:P59) -> 0.3686567942 | Q60: Initial oil
A61: Cumulative total | C61: =SUM($C$41:C60) -> 0 | D61: =SUM($C$60:D60) -> 0.01856456269 | E61: =SUM($C$60:E60) -> 0.03987630578 | F61: =SUM($C$60:F60) -> 0.05943967252 | G61: =SUM($C$60:G60) -> 0.07390303483 | H61: =SUM($C$60:H60) -> 0.09020438138 | I61: =SUM($C$60:I60) -> 0.1778565033 | J61: =SUM($C$60:J60) -> 0.1778565033 | K61: =SUM($C$60:K60) -> 0.1778565033 | L61: =SUM($C$60:L60) -> 0.1778565033

Sheet CVD analysis
A2: temperature (deg R) | B2: Tres | C2: ='CCE & other data'!E5+459.67 -> 722.67 | D2: deg R | N2: UGC | O2: 10.732
A5: pressure (psia) | B5: P | C5: ='CVD Data'!C10+Pstd -> 5549.7 | D5: ='CVD Data'!D10+Pstd -> 4514.7 | E5: ='CVD Data'!E10+Pstd -> 3514.7 | F5: ='CVD Data'!F10+Pstd -> 2514.7 | G5: ='CVD Data'!G10+Pstd -> 1714.7 | H5: ='CVD Data'!H10+Pstd -> 914.7 | I5: ='CVD Data'!I10+Pstd -> 16.7 | J5: ='CVD Data'!J10+14.7 -> 14.7 | K5: ='CVD Data'!K10+14.7 -> 14.7 | L5: ='CVD Data'!L10+14.7 -> 14.7
A7: wellstream produced (cum fraction) | B7: Np | C7: ='CVD Data'!C12/100 -> 0 | D7: ='CVD Data'!D12/100 -> 0.07976 | E7: ='CVD Data'!E12/100 -> 0.2198 | F7: ='CVD Data'!F12/100 -> 0.39965 | G7: ='CVD Data'!G12/100 -> 0.56259 | H7: ='CVD Data'!H12/100 -> 0.73951 | I7: ='CVD Data'!I12/100 -> 0.93845 | J7: ='CVD Data'!J12/100 -> 0 | K7: ='CVD Data'!K12/100 -> 0 | L7: ='CVD Data'!L12/100 -> 0
A8: liquid volume (fraction) | B8: SL | C8: ='CVD Data'!C13/100 -> 0 | D8: ='CVD Data'!D13/100 -> 0.17 | E8: ='CVD Data'!E13/100 -> 0.22842 | F8: ='CVD Data'!F13/100 -> 0.23832 | G8: ='CVD Data'!G13/100 -> 0.22309 | H8: ='CVD Data'!H13/100 -> 0.19063 | I8: ='CVD Data'!I13/100 -> 0.14967 | J8: ='CVD Data'!J13/100 -> 0 | K8: ='CVD Data'!K13/100 -> 0 | L8: ='CVD Data'!L13/100 -> 0
A9: eq gas Z-factor | B9: Z | C9: ='CVD Data'!C14 -> 1.0823 | D9: ='CVD Data'!D14 -> 0.9202 | E9: ='CVD Data'!E14 -> 0.8515 | F9: ='CVD Data'!F14 -> 0.8369 | G9: ='CVD Data'!G14 -> 0.8568 | H9: ='CVD Data'!H14 -> 0.9069 | I9: ='CVD Data'!I14 -> 1 | J9: ='CVD Data'!J14 -> 0 | K9: ='CVD Data'!K14 -> 0 | L9: ='CVD Data'!L14 -> 0
B11: Produced gas phase composition
A12: gas phase composition | B12: ='CVD Data'!B17 -> N2 | C12: ='CVD Data'!C17 -> 0.393 | D12: ='CVD Data'!D17 -> 0.405 | E12: ='CVD Data'!E17 -> 0.433 | F12: ='CVD Data'!F17 -> 0.442 | G12: ='CVD Data'!G17 -> 0.437 | H12: ='CVD Data'!H17 -> 0.428 | I12: ='CVD Data'!I17 -> 0.335 | J12: ='CVD Data'!J17 -> 0 | K12: ='CVD Data'!K17 -> 0 | L12: ='CVD Data'!L17 -> 0
B13: ='CVD Data'!B18 -> CO2 | C13: ='CVD Data'!C18 -> 1.776 | D13: ='CVD Data'!D18 -> 1.829 | E13: ='CVD Data'!E18 -> 1.863 | F13: ='CVD Data'!F18 -> 1.899 | G13: ='CVD Data'!G18 -> 1.936 | H13: ='CVD Data'!H18 -> 1.945 | I13: ='CVD Data'!I18 -> 1.612 | J13: ='CVD Data'!J18 -> 0 | K13: ='CVD Data'!K18 -> 0 | L13: ='CVD Data'!L18 -> 0
B14: ='CVD Data'!B19 -> H2S | C14: ='CVD Data'!C19 -> 0 | D14: ='CVD Data'!D19 -> 0 | E14: ='CVD Data'!E19 -> 0 | F14: ='CVD Data'!F19 -> 0 | G14: ='CVD Data'!G19 -> 0 | H14: ='CVD Data'!H19 -> 0 | I14: ='CVD Data'!I19 -> 0 | J14: ='CVD Data'!J19 -> 0 | K14: ='CVD Data'!K19 -> 0 | L14: ='CVD Data'!L19 -> 0
B15: ='CVD Data'!B20 -> C1 | C15: ='CVD Data'!C20 -> 68.25 | D15: ='CVD Data'!D20 -> 71.913 | E15: ='CVD Data'!E20 -> 74.339 | F15: ='CVD Data'!F20 -> 75.538 | G15: ='CVD Data'!G20 -> 76.049 | H15: ='CVD Data'!H20 -> 74.723 | I15: ='CVD Data'!I20 -> 60.118 | J15: ='CVD Data'!J20 -> 0 | K15: ='CVD Data'!K20 -> 0 | L15: ='CVD Data'!L20 -> 0
B16: ='CVD Data'!B21 -> C2 | C16: ='CVD Data'!C21 -> 7.024 | D16: ='CVD Data'!D21 -> 7.178 | E16: ='CVD Data'!E21 -> 7.244 | F16: ='CVD Data'!F21 -> 7.464 | G16: ='CVD Data'!G21 -> 7.621 | H16: ='CVD Data'!H21 -> 7.691 | I16: ='CVD Data'!I21 -> 7.178 | J16: ='CVD Data'!J21 -> 0 | K16: ='CVD Data'!K21 -> 0 | L16: ='CVD Data'!L21 -> 0
B17: ='CVD Data'!B22 -> C3 | C17: ='CVD Data'!C22 -> 6.625 | D17: ='CVD Data'!D22 -> 6.501 | E17: ='CVD Data'!E22 -> 6.501 | F17: ='CVD Data'!F22 -> 6.501 | G17: ='CVD Data'!G22 -> 6.501 | H17: ='CVD Data'!H22 -> 7.112 | I17: ='CVD Data'!I22 -> 8.091 | J17: ='CVD Data'!J22 -> 0 | K17: ='CVD Data'!K22 -> 0 | L17: ='CVD Data'!L22 -> 0
B18: ='CVD Data'!B23 -> iC4 | C18: ='CVD Data'!C23 -> 1.418 | D18: ='CVD Data'!D23 -> 1.352 | E18: ='CVD Data'!E23 -> 1.312 | F18: ='CVD Data'!F23 -> 1.3 | G18: ='CVD Data'!G23 -> 1.324 | H18: ='CVD Data'!H23 -> 1.462 | I18: ='CVD Data'!I23 -> 1.991 | J18: ='CVD Data'!J23 -> 0 | K18: ='CVD Data'!K23 -> 0 | L18: ='CVD Data'!L23 -> 0
B19: ='CVD Data'!B24 -> nC4 | C19: ='CVD Data'!C24 -> 2.319 | D19: ='CVD Data'!D24 -> 2.178 | E19: ='CVD Data'!E24 -> 2.113 | F19: ='CVD Data'!F24 -> 2.113 | G19: ='CVD Data'!G24 -> 2.113 | H19: ='CVD Data'!H24 -> 2.36 | I19: ='CVD Data'!I24 -> 3.243 | J19: ='CVD Data'!J24 -> 0 | K19: ='CVD Data'!K24 -> 0 | L19: ='CVD Data'!L24 -> 0
B20: ='CVD Data'!B25 -> iC5 | C20: ='CVD Data'!C25 -> 0.857 | D20: ='CVD Data'!D25 -> 0.8 | E20: ='CVD Data'!E25 -> 0.766 | F20: ='CVD Data'!F25 -> 0.724 | G20: ='CVD Data'!G25 -> 0.69 | H20: ='CVD Data'!H25 -> 0.815 | I20: ='CVD Data'!I25 -> 1.213 | J20: ='CVD Data'!J25 -> 0 | K20: ='CVD Data'!K25 -> 0 | L20: ='CVD Data'!L25 -> 0
B21: ='CVD Data'!B26 -> nC5 | C21: ='CVD Data'!C26 -> 0.842 | D21: ='CVD Data'!D26 -> 0.787 | E21: ='CVD Data'!E26 -> 0.757 | F21: ='CVD Data'!F26 -> 0.716 | G21: ='CVD Data'!G26 -> 0.681 | H21: ='CVD Data'!H26 -> 0.762 | I21: ='CVD Data'!I26 -> 1.151 | J21: ='CVD Data'!J26 -> 0 | K21: ='CVD Data'!K26 -> 0 | L21: ='CVD Data'!L26 -> 0
B22: ='CVD Data'!B27 -> C6 | C22: ='CVD Data'!C27 -> 0.968 | D22: ='CVD Data'!D27 -> 0.857 | E22: ='CVD Data'!E27 -> 0.771 | F22: ='CVD Data'!F27 -> 0.701 | G22: ='CVD Data'!G27 -> 0.647 | H22: ='CVD Data'!H27 -> 0.701 | I22: ='CVD Data'!I27 -> 1.268 | J22: ='CVD Data'!J27 -> 0 | K22: ='CVD Data'!K27 -> 0 | L22: ='CVD Data'!L27 -> 0
B23: ='CVD Data'!B28 -> C7 | C23: ='CVD Data'!C28 -> 0 | D23: ='CVD Data'!D28 -> 0 | E23: ='CVD Data'!E28 -> 0 | F23: ='CVD Data'!F28 -> 0 | G23: ='CVD Data'!G28 -> 0 | H23: ='CVD Data'!H28 -> 0 | I23: ='CVD Data'!I28 -> 0 | J23: ='CVD Data'!J28 -> 0 | K23: ='CVD Data'!K28 -> 0 | L23: ='CVD Data'!L28 -> 0
B24: ='CVD Data'!B29 -> C8 | C24: ='CVD Data'!C29 -> 0 | D24: ='CVD Data'!D29 -> 0 | E24: ='CVD Data'!E29 -> 0 | F24: ='CVD Data'!F29 -> 0 | G24: ='CVD Data'!G29 -> 0 | H24: ='CVD Data'!H29 -> 0 | I24: ='CVD Data'!I29 -> 0 | J24: ='CVD Data'!J29 -> 0 | K24: ='CVD Data'!K29 -> 0 | L24: ='CVD Data'!L29 -> 0
B25: ='CVD Data'!B30 -> C9 | C25: ='CVD Data'!C30 -> 0 | D25: ='CVD Data'!D30 -> 0 | E25: ='CVD Data'!E30 -> 0 | F25: ='CVD Data'!F30 -> 0 | G25: ='CVD Data'!G30 -> 0 | H25: ='CVD Data'!H30 -> 0 | I25: ='CVD Data'!I30 -> 0 | J25: ='CVD Data'!J30 -> 0 | K25: ='CVD Data'!K30 -> 0 | L25: ='CVD Data'!L30 -> 0
B26: ='CVD Data'!B31 -> C10 | C26: ='CVD Data'!C31 -> 0 | D26: ='CVD Data'!D31 -> 0 | E26: ='CVD Data'!E31 -> 0 | F26: ='CVD Data'!F31 -> 0 | G26: ='CVD Data'!G31 -> 0 | H26: ='CVD Data'!H31 -> 0 | I26: ='CVD Data'!I31 -> 0 | J26: ='CVD Data'!J31 -> 0 | K26: ='CVD Data'!K31 -> 0 | L26: ='CVD Data'!L31 -> 0
B27: ='CVD Data'!B32 -> C11 | C27: ='CVD Data'!C32 -> 0 | D27: ='CVD Data'!D32 -> 0 | E27: ='CVD Data'!E32 -> 0 | F27: ='CVD Data'!F32 -> 0 | G27: ='CVD Data'!G32 -> 0 | H27: ='CVD Data'!H32 -> 0 | I27: ='CVD Data'!I32 -> 0 | J27: ='CVD Data'!J32 -> 0 | K27: ='CVD Data'!K32 -> 0 | L27: ='CVD Data'!L32 -> 0
B28: ='CVD Data'!B33 -> C7+ | C28: ='CVD Data'!C33 -> 9.529 | D28: ='CVD Data'!D33 -> 6.2 | E28: ='CVD Data'!E33 -> 3.9 | F28: ='CVD Data'!F33 -> 2.6 | G28: ='CVD Data'!G33 -> 2 | H28: ='CVD Data'!H33 -> 2 | I28: ='CVD Data'!I33 -> 13.8 | J28: ='CVD Data'!J33 -> 0 | K28: ='CVD Data'!K33 -> 0 | L28: ='CVD Data'!L33 -> 0
B30: MW_plus | C30: ='CVD Data'!C35 -> 169.53 | D30: ='CVD Data'!D35 -> 149.703 | E30: ='CVD Data'!E35 -> 136.501 | F30: ='CVD Data'!F35 -> 126.627 | G30: ='CVD Data'!G35 -> 120.849 | H30: ='CVD Data'!H35 -> 116.4 | I30: ='CVD Data'!I35 -> 131.537 | J30: ='CVD Data'!J35 -> 0 | K30: ='CVD Data'!K35 -> 0 | L30: ='CVD Data'!L35 -> 0
B32: MW_gas | C32: =(SUMPRODUCT(C12:C27,Mwref)+C28*C30)/100 -> 37.25850019 | D32: 30.69467565 | E32: 26.98710409 | F32: 25.10552756 | G32: 24.29189641 | H32: 24.70102744 | I32: 40.16432685 | J32: 0 | K32: 0 | L32: 0
A35: vol of 1 lb mole (ft3) | B35: V | C35: =Z*UGC*Tres/P -> 1.512512044 | D35: =Z*UGC*Tres/P -> 1.580789426 | E35: 1.878958038 | F35: 2.581119289 | G35: 3.875359536 | H35: 7.68955864 | I35: 464.4128407 | J35: 0 | K35: 0 | L35: 0 | N35: Vcell | O35: =C35 -> 1.512512044
A36: Gas density (lb/ft3) | B36: gas density (lb/ft3) | C36: =MW_gas/C35 -> 24.63352297 | D36: 19.4173083 | E36: 14.36280297 | F36: 9.726604913 | G36: 6.268294899 | H36: 3.212281562 | I36: =MW_gas/I35 -> 0.08648410063 | N36: Init mass | O36: =C32 -> 37.25850019
A37: Gas density (Kg/m3) | B37: gas density (kg/m3) | C37: =C36*16.018 -> 394.579771 | D37: 311.0264443 | E37: 230.063378 | F37: 155.8007575 | G37: 100.4055477 | H37: 51.45432606 | I37: 1.385302324
A39: Lb Moles gas produced | B39: Ngas_p | C39: 0 | D39: =Np-C7 -> 0.07976 | E39: 0.14004 | F39: 0.17985 | G39: 0.16294 | H39: 0.17692 | I39: 0.19894 | J39: -0.93845 | K39: 0 | L39: 0
A40: Vol of gas in cell | B40: Vgas | C40: =(1-SL)*Vcell -> 1.512512044 | D40: =(1-SL)*Vcell -> 1.255384997 | E40: 1.167024043 | F40: 1.152050174 | G40: 1.175085732 | H40: 1.224181873 | I40: 1.286134367 | J40: 1.512512044 | K40: 1.512512044 | L40: 1.512512044
A41: Lb moles of gas in cell | B41: Ngas | C41: =Vgas/V -> 1 | D41: 0.7941506793 | E41: 0.6211017062 | F41: 0.4463374392 | G41: 0.3032197972 | H41: 0.1592005381 | I41: 0.002769377274
A42: Lb moles of liquid | B42: Nliq | C42: =1-Ngas-Np -> 0 | D42: 0.1260893207 | E42: 0.1590982938 | F42: 0.1540125608 | G42: 0.1341902028 | H42: 0.1012894619 | I42: 0.05878062273
A44: Mass removed | B44: Mgas_p | C44: =Ngas_p*MW_gas -> 0 | D44: =Ngas_p*MW_gas -> 2.44820733 | E44: 3.779274057 | F44: 4.515229132 | G44: 3.958121601 | H44: 4.370105775 | I44: 7.990291184 | J44: 0 | K44: 0 | L44: 0
A45: Mass of gas in cell | B45: Mgas | C45: =Ngas*MW_gas -> 37.25850019 | D45: =Ngas*MW_gas -> 24.37619752 | E45: 16.7617364 | F45: 11.20553688 | G45: 7.365783902 | H45: 3.932416861 | I45: 0.111230174
A46: Mass of liquid | B46: Mliq | C46: =Init_mass-Mgas-SUM($C$44:C44) -> 0 | D46: =Init_mass-Mgas-SUM($C$44:D44) -> 10.43409534 | E46: =Init_mass-Mgas-SUM($C$44:E44) -> 14.26928241 | F46: =Init_mass-Mgas-SUM($C$44:F44) -> 15.31025279 | G46: =Init_mass-Mgas-SUM($C$44:G44) -> 15.19188417 | H46: =Init_mass-Mgas-SUM($C$44:H44) -> 14.25514544 | I46: =Init_mass-Mgas-SUM($C$44:I44) -> 10.08604094 | J46: =Init_mass-Mgas-SUM($C$44:J44) ->  | K46: =Init_mass-Mgas-SUM($C$44:K44) ->  | L46: =Init_mass-Mgas-SUM($C$44:L44) -> 
A47: MW of liquid | D47: =Mliq/Nliq -> 82.75161831 | E47: =Mliq/Nliq -> 89.6884691 | F47: 99.40911776 | G47: 113.2115747 | H47: 140.7367082 | I47: 171.5878545
A49: Liquid density (lb/ft3) | B49: liquid density (lb/ft3) | D49: =Mliq/Vcell/SL -> 40.57953235 | E49: =Mliq/Vcell/SL -> 41.3018176 | F49: 42.47398698 | G49: 45.02282018 | H49: 49.440353 | I49: 44.55404368
A50: Liquid density (Kg/m3) | B50: liquid density (kg/m3) | D50: =D49*16.018 -> 650.0029492 | E50: 661.5725144 | F50: 680.3483234 | G50: 721.1755337 | H50: 791.9355744 | I50: 713.6666716
A53: moles of each component | B53: =B12 -> N2 | C53: 0.393 | D53: =C53-D12*Ngas_p -> 0.3606972 | E53: 0.30005988 | F53: 0.22056618 | G53: 0.1493614 | H53: 0.07363964 | I53: 0.00699474 | J53: 0.00699474 | K53: 0.00699474 | L53: 0.00699474
A54: remaining in cell | B54: CO2 | C54: 1.776 | D54: =C54-D13*Ngas_p -> 1.63011896 | E54: 1.36922444 | F54: 1.02768929 | G54: 0.71223745 | H54: 0.36812805 | I54: 0.04743677 | J54: 0.04743677 | K54: 0.04743677 | L54: 0.04743677
A55: (after extra gas has been removed) | B55: H2S | C55: 0 | D55: =C55-D14*Ngas_p -> 0 | E55: 0 | F55: 0 | G55: 0 | H55: 0 | I55: 0 | J55: 0 | K55: 0 | L55: 0
B56: C1 | C56: 68.25 | D56: =C56-D15*Ngas_p -> 62.51421912 | E56: 52.10378556 | F56: 38.51827626 | G56: 26.1268522 | H56: 12.90685904 | I56: 0.94698412 | J56: 0.94698412 | K56: 0.94698412 | L56: 0.94698412
B57: C2 | C57: 7.024 | D57: =C57-D16*Ngas_p -> 6.45148272 | E57: 5.43703296 | F57: 4.09463256 | G57: 2.85286682 | H57: 1.4921751 | I57: 0.06418378 | J57: 0.06418378 | K57: 0.06418378 | L57: 0.06418378
B58: C3 | C58: 6.625 | D58: =C58-D17*Ngas_p -> 6.10648024 | E58: 5.1960802 | F58: 4.02687535 | G58: 2.96760241 | H58: 1.70934737 | I58: 0.09972383 | J58: 0.09972383 | K58: 0.09972383 | L58: 0.09972383
B59: iC4 | C59: 1.418 | D59: =C59-D18*Ngas_p -> 1.31016448 | E59: 1.126432 | F59: 0.892627 | G59: 0.67689444 | H59: 0.4182374 | I59: 0.02214786 | J59: 0.02214786 | K59: 0.02214786 | L59: 0.02214786
B60: nC4 | C60: 2.319 | D60: =C60-D19*Ngas_p -> 2.14528272 | E60: 1.8493782 | F60: 1.46935515 | G60: 1.12506293 | H60: 0.70753173 | I60: 0.06236931 | J60: 0.06236931 | K60: 0.06236931 | L60: 0.06236931
B61: iC5 | C61: 0.857 | D61: =C61-D20*Ngas_p -> 0.793192 | E61: 0.68592136 | F61: 0.55570996 | G61: 0.44328136 | H61: 0.29909156 | I61: 0.05777734 | J61: 0.05777734 | K61: 0.05777734 | L61: 0.05777734
B62: nC5 | C62: 0.842 | D62: =C62-D21*Ngas_p -> 0.77922888 | E62: 0.6732186 | F62: 0.544446 | G62: 0.43348386 | H62: 0.29867082 | I62: 0.06969088 | J62: 0.06969088 | K62: 0.06969088 | L62: 0.06969088
B63: C6 | C63: 0.968 | D63: =C63-D22*Ngas_p -> 0.89964568 | E63: 0.79167484 | F63: 0.66559999 | G63: 0.56017781 | H63: 0.43615689 | I63: 0.18390097 | J63: 0.18390097 | K63: 0.18390097 | L63: 0.18390097
B64: =B23 -> C7 | C64: 0 | D64: =C64-D23*Ngas_p -> 0 | E64: 0 | F64: 0 | G64: 0 | H64: 0 | I64: 0 | J64: 0 | K64: 0 | L64: 0
B65: C8 | C65: 0 | D65: =C65-D24*Ngas_p -> 0 | E65: 0 | F65: 0 | G65: 0 | H65: 0 | I65: 0 | J65: 0 | K65: 0 | L65: 0
B66: C9 | C66: 0 | D66: =C66-D25*Ngas_p -> 0 | E66: 0 | F66: 0 | G66: 0 | H66: 0 | I66: 0 | J66: 0 | K66: 0 | L66: 0
B67: C10 | C67: 0 | D67: =C67-D26*Ngas_p -> 0 | E67: 0 | F67: 0 | G67: 0 | H67: 0 | I67: 0 | J67: 0 | K67: 0 | L67: 0
B68: C11 | C68: 0 | D68: =C68-D27*Ngas_p -> 0 | E68: 0 | F68: 0 | G68: 0 | H68: 0 | I68: 0 | J68: 0 | K68: 0 | L68: 0
B69: C7+ | C69: =C28 -> 9.529 | D69: =C69-D28*Ngas_p -> 9.034488 | E69: 8.488332 | F69: 8.020722 | G69: 7.694842 | H69: 7.341002 | I69: 4.59563 | J69: 4.59563 | K69: 4.59563 | L69: 4.59563
B71: Total | C71: =SUM(C53:C69) -> 100.001 | D71: 92.025 | E71: 78.02114004 | F71: 60.03649974 | G71: 43.74266268 | H71: 26.0508396 | I71: 6.1568396 | J71: 6.1568396 | K71: 6.1568396 | L71: 6.1568396
A73: moles of liquid in cell | B73: =B12 -> N2 | C73: =C53-Ngas*C12 -> 0 | D73: 0.0390661749 | E73: 0.03112284122 | F73: 0.02328503186 | G73: 0.01685434865 | H73: 0.005501809685 | I73: =I53-Ngas*I12 -> 0.006066998613
B74: CO2 | C74: =C54-Ngas*C13 -> 0 | D74: 0.1776173676 | E74: 0.2121119614 | F74: 0.1800944929 | G74: 0.1252039227 | H74: 0.05848300336 | I74: 0.04297253383
B75: H2S | C75: =C55-Ngas*C14 -> 0 | D75: 0 | E75: 0 | F75: 0 | G75: 0 | H75: 0 | I75: 0
B76: C1 | C76: =C56-Ngas*C15 -> 0 | D76: 5.404461323 | E76: 5.931705824 | F76: 4.802838776 | G76: 3.067289846 | H76: 1.01091723 | I76: 0.7804946971
B77: C2 | C77: =C57-Ngas*C16 -> 0 | D77: 0.7510691443 | E77: 0.9377722004 | F77: 0.7631699136 | G77: 0.5420287459 | H77: 0.2677637613 | I77: 0.04430518993
B78: C3 | C78: =C58-Ngas*C17 -> 0 | D78: 0.9437066742 | E78: 1.158298008 | F78: 1.125235658 | G78: 0.9963705087 | H78: 0.5771131429 | I78: 0.07731679848
B79: iC4 | C79: =C59-Ngas*C18 -> 0 | D79: 0.2364727616 | E79: 0.3115465615 | F79: 0.312388329 | G79: 0.2754314286 | H79: 0.1854862133 | I79: 0.01663402985
B80: nC4 | C80: =C60-Ngas*C19 -> 0 | D80: 0.4156225406 | E80: 0.5369902948 | F80: 0.5262441409 | G80: 0.4843594986 | H80: 0.33181846 | I80: 0.0533882195
B81: iC5 | C81: =C61-Ngas*C20 -> 0 | D81: 0.1578714566 | E81: 0.2101574531 | F81: 0.232561654 | G81: 0.2340597 | H81: 0.1693431214 | I81: 0.05441808537
B82: nC5 | C82: =C62-Ngas*C21 -> 0 | D82: 0.1542322954 | E82: 0.2030446084 | F82: 0.2248683935 | G82: 0.2269911781 | H82: 0.17736001 | I82: 0.06650332676
B83: C6 | C83: =C63-Ngas*C22 -> 0 | D83: 0.2190585479 | E83: 0.3128054245 | F83: 0.3527174451 | G83: 0.3639946012 | H83: 0.3245573128 | I83: 0.1803893996
B84: C7 | C84: =C64-Ngas*C23 -> 0 | D84: 0 | E84: 0 | F84: 0 | G84: 0 | H84: 0 | I84: 0
B85: C8 | C85: =C65-Ngas*C24 -> 0 | D85: 0 | E85: 0 | F85: 0 | G85: 0 | H85: 0 | I85: 0
B86: C9 | C86: =C66-Ngas*C25 -> 0 | D86: 0 | E86: 0 | F86: 0 | G86: 0 | H86: 0 | I86: 0
B87: C10 | C87: =C67-Ngas*C26 -> 0 | D87: 0 | E87: 0 | F87: 0 | G87: 0 | H87: 0 | I87: 0
B88: C11 | C88: =C68-Ngas*C27 -> 0 | D88: 0 | E88: 0 | F88: 0 | G88: 0 | H88: 0 | I88: 0
B89: C7+ | C89: =C69-Ngas*C28 -> 0 | D89: 4.110753789 | E89: 6.066035346 | F89: 6.860244658 | G89: 7.088402406 | H89: 7.022600924 | I89: =I69-Ngas*I28 -> 4.557412594 | J89: =J69-Ngas*J28 ->  | K89: =K69-Ngas*K28 ->  | L89: =L69-Ngas*L28 -> 
N90: Measured
B91: Total | C91: =SUM(C73:C89) -> 0 | D91: 12.60993207 | E91: 15.91159052 | F91: 15.40364849 | G91: 13.42098618 | H91: 10.13094499 | I91: 5.879901873 | N91: liquid
N92: composition
A93: MW of C7+ fraction in liquid | D93: =(Mliq*100-SUMPRODUCT(D73:D83,Mwref))/D89 ->  | N93: ='CVD Data'!N35 -> 189.3
B95: Calculated liquid phase composition (mol %)
B96: =B12 -> N2 | D96: =100*D73/D$91 -> 0.3098048005 | E96: 0.1955985555 | F96: 0.1511656922 | G96: 0.125582043 | H96: 0.05430697424 | I96: 0.1031819705 | N96: ='CVD Data'!N17 -> 0
B97: CO2 | D97: =100*D74/D$91 -> 1.408551343 | E97: 1.333065736 | F97: 1.169167766 | G97: 0.9328965919 | H97: 0.5772709597 | I97: 0.7308376018 | N97: ='CVD Data'!N18 -> 0
B98: H2S | D98: =100*D75/D$91 -> 0 | E98: 0 | F98: 0 | G98: 0 | H98: 0 | I98: 0 | N98: ='CVD Data'!N19 -> 0
B99: C1 | D99: =100*D76/D$91 -> 42.85876633 | E99: 37.27915079 | F99: 31.17987779 | G99: 22.85442965 | H99: 9.97850873 | I99: 13.27394086 | N99: ='CVD Data'!N20 -> 0.002
B100: C2 | D100: =100*D77/D$91 -> 5.956171214 | E100: 5.893642116 | F100: 4.954475 | G100: 4.038665553 | H100: 2.64302848 | I100: 0.7535021994 | N100: ='CVD Data'!N21 -> 0.008
B101: C3 | D101: =100*D78/D$91 -> 7.483836301 | E101: 7.279586578 | F101: 7.304994386 | G101: 7.423973879 | H101: 5.696538117 | I101: 1.314933483 | N101: ='CVD Data'!N22 -> 0.154
B102: iC4 | D102: =100*D79/D$91 -> 1.875289734 | E102: 1.957985036 | F102: 2.028015176 | G102: 2.052244334 | H102: 1.830887577 | I102: 0.2828963852 | N102: ='CVD Data'!N23 -> 0.188
B103: nC4 | D103: =100*D80/D$91 -> 3.295993492 | E103: 3.374837318 | F103: 3.416360359 | G103: 3.608970995 | H103: 3.275296238 | I103: 0.9079780693 | N103: ='CVD Data'!N24 -> 0.608
B104: iC5 | D104: =100*D81/D$91 -> 1.251961197 | E104: 1.320782186 | F104: 1.50978292 | G104: 1.743982869 | H104: 1.671543194 | I104: 0.9254930872 | N104: ='CVD Data'!N25 -> 0.839
B105: nC5 | D105: =100*D82/D$91 -> 1.223101715 | E105: 1.2760799 | F105: 1.459838516 | G105: 1.691315191 | H105: 1.750675876 | I105: 1.131027833 | N105: ='CVD Data'!N26 -> 1.099
B106: C6 | D106: =100*D83/D$91 -> 1.737190546 | E106: 1.965896647 | F106: 2.289830525 | G106: 2.712130064 | H106: 3.203623286 | I106: 3.06789813 | N106: ='CVD Data'!N27 -> 3.234
B107: C7 | D107: =100*D84/D$91 -> 0 | E107: 0 | F107: 0 | G107: 0 | H107: 0 | I107: 0 | N107: ='CVD Data'!N28 -> 0
B108: C8 | D108: =100*D85/D$91 -> 0 | E108: 0 | F108: 0 | G108: 0 | H108: 0 | I108: 0 | N108: ='CVD Data'!N29 -> 0
B109: C9 | D109: =100*D86/D$91 -> 0 | E109: 0 | F109: 0 | G109: 0 | H109: 0 | I109: 0 | N109: ='CVD Data'!N30 -> 0
B110: C10 | D110: =100*D87/D$91 -> 0 | E110: 0 | F110: 0 | G110: 0 | H110: 0 | I110: 0 | N110: ='CVD Data'!N31 -> 0
B111: C11 | D111: =100*D88/D$91 -> 0 | E111: 0 | F111: 0 | G111: 0 | H111: 0 | I111: 0 | N111: ='CVD Data'!N32 -> 0
B112: C7+ | D112: =100*D89/D$91 -> 32.59933332 | E112: 38.12337514 | F112: 44.53649187 | G112: 52.81580882 | H112: 69.31832057 | I112: 77.50831038 | N112: ='CVD Data'!N33 -> 93.867
B114: K-values
B115: =B12 -> N2 | D115: =D12/D96 -> 1.307274772 | E115: 2.21371778 | F115: 2.923943877 | G115: 3.479796868 | H115: 7.881124036 | I115: 3.246691244
B116: CO2 | D116: =D13/D97 -> 1.298497217 | E116: 1.397530481 | F116: 1.624232258 | G116: 2.075256804 | H116: 3.369301655 | I116: 2.205688372
B117: H2S | D117: =D14/D98 -> 
B118: C1 | D118: =D15/D99 -> 1.677906439 | E118: 1.994117313 | F118: 2.422652215 | G118: 3.327538738 | H118: 7.488393508 | I118: 4.529024247
B119: C2 | D119: =D16/D100 -> 1.205136612 | E119: 1.22912112 | F119: 1.506516836 | G119: 1.887009434 | H119: 2.909919457 | I119: 9.52618321
B120: C3 | D120: =D17/D101 -> 0.8686721273 | E120: 0.8930452204 | F120: 0.8899390823 | G120: 0.8756765723 | H120: 1.248477558 | I120: 6.153162959
B121: iC4 | D121: =D18/D102 -> 0.7209552612 | E121: 0.6700766225 | F121: 0.6410208443 | G121: 0.645147353 | H121: 0.7985198098 | I121: 7.037912481
B122: nC4 | D122: =D19/D103 -> 0.6608022755 | E122: 0.6261042536 | F122: 0.6184944731 | G122: 0.5854854481 | H122: 0.7205455107 | I122: 3.571672169
B123: iC5 | D123: =D20/D104 -> 0.6389974399 | E123: 0.5799593668 | F123: 0.479539138 | G123: 0.3956460881 | H123: 0.487573401 | I123: 1.310652685
B124: nC5 | D124: =D21/D105 -> 0.6434460769 | E124: 0.593223042 | F124: 0.4904652071 | G124: 0.4026452335 | H124: 0.4352604673 | I124: 1.017658422
B125: C6 | D125: =D22/D106 -> 0.4933252727 | E125: 0.3921874536 | F125: 0.3061361932 | G125: 0.2385578806 | H125: 0.2188147411 | I125: 0.4133122894
B126: C7 | D126: =D23/D107 -> 
B127: C8 | D127: =D24/D108 -> 
B128: C9 | D128: =D25/D109 -> 
B129: C10 | D129: =D26/D110 -> 
B130: C11 | D130: =D27/D111 -> 
B131: C7+ | D131: =D28/D112 -> 0.1901879385 | E131: 0.1022994419 | F131: 0.05837909299 | G131: 0.03786745 | H131: 0.02885240126 | I131: 0.1780454242
A134: Backward material balance calculation
A135: Calculate original gas composition from residual liquid and produced gas compositions
D136: =D5 -> 4514.7 | E136: =E5 -> 3514.7 | F136: 2514.7 | G136: 1714.7 | H136: 914.7 | I136: 16.7 | J136: 14.7 | K136: 14.7 | L136: 14.7 | N136: Residual gas | O136: Residual liquid | Q136: Moles of residual liquid
B138: =B96 -> N2 | C138: =SUM(D138:O138) -> 0.3868651304 | D138: =Ngas_p*D12 -> 0.0323028 | E138: 0.06063732 | F138: 0.0794937 | G138: 0.07120478 | H138: 0.07572176 | I138: 0.0666449 | J138: 0 | K138: 0 | L138: 0 | N138: =INDEX(C12:L12,N_pres)*Moles_resid_gas -> 0.0008598703621 | O138: ='CVD Data'!N17*Moles_resid_liq -> 0 | Q138: Gas molar vol | R138: =INDEX(Z,N_pres)*UGC*Tres/INDEX(P,N_pres) -> 464.4128407
B139: CO2 | C139: 1.732700875 | D139: =Ngas_p*D13 -> 0.14588104 | E139: 0.26089452 | F139: 0.34153515 | G139: 0.31545184 | H139: 0.3441094 | I139: 0.32069128 | J139: 0 | K139: 0 | L139: 0 | N139: 0.004137644847 | O139: ='CVD Data'!N18*Moles_resid_liq -> 0 | Q139: Liq molar vol | R139: =Residual_liq_MW/Residual_liquid_density -> 3.557223486
B140: H2S | C140: 0 | D140: =Ngas_p*D14 -> 0 | E140: 0 | F140: 0 | G140: 0 | H140: 0 | I140: 0 | J140: 0 | K140: 0 | L140: 0 | N140: 0 | O140: ='CVD Data'!N19*Moles_resid_liq -> 0 | Q140: Total moles | R140: =1-INDEX(Np,N_pres) -> 0.06155
B141: C1 | C141: 67.45744336 | D141: =Ngas_p*D15 -> 5.73578088 | E141: 10.41043356 | F141: 13.5855093 | G141: 12.39142406 | H141: 13.21999316 | I141: 11.95987492 | J141: 0 | K141: 0 | L141: 0 | N141: 0.1543095117 | O141: ='CVD Data'!N20*Moles_resid_liq -> 0.0001179664456 | Q141: Liq sat | R141: =INDEX(SL,N_pres) -> 0.14967
B142: C2 | C142: 6.978712413 | D142: =Ngas_p*D16 -> 0.57251728 | E142: 1.01444976 | F142: 1.3424004 | G142: 1.24176574 | H142: 1.36069172 | I142: 1.42799132 | J142: 0 | K142: 0 | L142: 0 | N142: 0.01842432674 | O142: ='CVD Data'!N21*Moles_resid_liq -> 0.0004718657824 | Q142: Liq mole frac | R142: =1/(1+Liq_molar_vol/Gas_molar_vol*(1/Liq_sat-1)) -> 0.9582976897
B143: C3 | C143: 6.555127381 | D143: =Ngas_p*D17 -> 0.51851976 | E143: 0.91040004 | F143: 1.16920485 | G143: 1.05927294 | H143: 1.25825504 | I143: 1.60962354 | J143: 0 | K143: 0 | L143: 0 | N143: 0.02076779433 | O143: ='CVD Data'!N22*Moles_resid_liq -> 0.009083416311
B144: iC4 | C144: 1.412051439 | D144: =Ngas_p*D18 -> 0.10783552 | E144: 0.18373248 | F144: 0.233805 | G144: 0.21573256 | H144: 0.25865704 | I144: 0.39608954 | J144: 0 | K144: 0 | L144: 0 | N144: 0.005110453406 | O144: ='CVD Data'!N23*Moles_resid_liq -> 0.01108884589 | Q144: Moles resid liq | R144: =(1-INDEX(Np,N_pres))*R142 -> 0.0589832228
B145: nC4 | C145: 2.300816548 | D145: =Ngas_p*D19 -> 0.17371728 | E145: 0.29590452 | F145: 0.38002305 | G145: 0.34429222 | H145: 0.4175312 | I145: 0.64516242 | J145: 0 | K145: 0 | L145: 0 | N145: 0.00832405846 | O145: ='CVD Data'!N24*Moles_resid_liq -> 0.03586179946 | Q145: Moles_resid_gas | R145: =(1-INDEX(Np,N_pres))*(1-R142) -> 0.0025667772
B146: iC5 | C146: 0.8518230847 | D146: =Ngas_p*D20 -> 0.063808 | E146: 0.10727064 | F146: 0.1302114 | G146: 0.1124286 | H146: 0.1441898 | I146: 0.24131422 | J146: 0 | K146: 0 | L146: 0 | N146: 0.003113500744 | O146: ='CVD Data'!N25*Moles_resid_liq -> 0.04948692393
B147: nC5 | C147: 0.8400860424 | D147: =Ngas_p*D21 -> 0.06277112 | E147: 0.10601028 | F147: 0.1287726 | G147: 0.11096214 | H147: 0.13481304 | I147: 0.22897994 | J147: 0 | K147: 0 | L147: 0 | N147: 0.002954360558 | O147: ='CVD Data'!N26*Moles_resid_liq -> 0.06482256186
B148: C6 | C148: 0.978105446 | D148: =Ngas_p*D22 -> 0.06835432 | E148: 0.10797084 | F148: 0.12607485 | G148: 0.10542218 | H148: 0.12402092 | I148: 0.25225592 | J148: 0 | K148: 0 | L148: 0 | N148: 0.00325467349 | O148: ='CVD Data'!N27*Moles_resid_liq -> 0.1907517425
C149: =SUM(D149:O149) -> 0 | D149: =Ngas_p*D23 -> 0 | E149: 0 | F149: 0 | G149: 0 | H149: 0 | I149: 0 | J149: 0 | K149: 0 | L149: 0 | N149: 0 | O149: ='CVD Data'!N28*Moles_resid_liq -> 0
C150: =SUM(D150:O150) -> 0 | D150: =Ngas_p*D24 -> 0 | E150: 0 | F150: 0 | G150: 0 | H150: 0 | I150: 0 | J150: 0 | K150: 0 | L150: 0 | N150: 0 | O150: ='CVD Data'!N29*Moles_resid_liq -> 0
C151: =SUM(D151:O151) -> 0 | D151: =Ngas_p*D25 -> 0 | E151: 0 | F151: 0 | G151: 0 | H151: 0 | I151: 0 | J151: 0 | K151: 0 | L151: 0 | N151: 0 | O151: ='CVD Data'!N30*Moles_resid_liq -> 0
C152: =SUM(D152:O152) -> 0 | D152: =Ngas_p*D26 -> 0 | E152: 0 | F152: 0 | G152: 0 | H152: 0 | I152: 0 | J152: 0 | K152: 0 | L152: 0 | N152: 0 | O152: ='CVD Data'!N31*Moles_resid_liq -> 0
C153: =SUM(D153:O153) -> 0 | D153: =Ngas_p*D27 -> 0 | E153: 0 | F153: 0 | G153: 0 | H153: 0 | I153: 0 | J153: 0 | K153: 0 | L153: 0 | N153: 0 | O153: ='CVD Data'!N32*Moles_resid_liq -> 0
B154: =B112 -> C7+ | C154: 10.5053697 | D154: =Ngas_p*D28 -> 0.494512 | E154: 0.546156 | F154: 0.46761 | G154: 0.32588 | H154: 0.35384 | I154: 2.745372 | J154: 0 | K154: 0 | L154: 0 | N154: 0.03542152536 | O154: ='CVD Data'!N33*Moles_resid_liq -> 5.536578175
C157: =SUM(D157:O157) -> 99.99910142 | D157: =SUM(D138:D154) -> 7.976 | E157: =SUM(E138:E154) -> 14.00385996 | F157: =SUM(F138:F154) -> 17.9846403 | G157: 16.29383706 | H157: 17.69182308 | I157: 19.894 | J157: 0 | K157: 0 | L157: 0 | N157: 0.25667772 | O157: 5.898263297
